Workbook

Sheet Linear
B1: Building Linear Approximations
B2: to the Cosine Function
B4: This graphing utility lets you try to
B5: build the best linear approximation
B6: to the cosine function
D7: y = cos x
C8: centered about x = 0
A11: Enter the interval for x:
C12: xMin = | D12: -1
C13: xMax = | D13: 2
A16: In the linear approximation cos x » a0 + b0x
A18: What is the constant coefficient a0 (-1 to 1)?
C19: 200 | F19: =(C19-0)/100-1 -> 1 | I19: The largest deviation at 200 evenly spaced points is | O19: =MAX(Calcs!E3:E203) -> 1.616146837
A21: What is the linear coefficient b0 (-2 to 2)? | I21: The sum of the squares of the 200 deviations is | O21: =Calcs!F205 -> 92.20553218
C22: 210 | F22: =2*(C22-0)/200-2 -> 0.1
A24: Your linear polynomial is y = | E24: =TEXT(aa00,"0.00")&" + " &TEXT(bb00,"0.00")&"x " -> 1.00 + 0.10x
A29: Click each item below for suggestions and investigations
C30: Item 1
C31: Item 2
C32: Item 3
C33: Item 4
A37: To access/download all the DIGMath Apps for Calculus
A38: Click this link: | C38: DIGMath for Calculus
A40: Created by: Sheldon P. Gordon
A41: Farmingdale State College
A42: Development of this module was supported by the
A43: NSF's Division of Undergraduate Education
A44: under grants DUE-0310123 and DUE-0442160.

Sheet Quad
B1: Building Quadratic Approximations
B2: to the Cosine Function
B4: This graphing utility lets you try to
B5: build the best quadratic approximation
B6: to the cosine function
D7: y = cos x
C8: centered about x = 0
A11: Enter the interval for x:
C12: xMin = | D12: -1
C13: xMax = | D13: 2
A16: In the quadratic approximation cos x » a0 + b0x + c0x2
A18: What is the constant coefficient a0 (-1 to 1)?
C19: 190 | F19: =(C19-0)/100-1 -> 0.9 | I19: The largest deviation at 200 evenly spaced points is | O19: =MAX(Calcs!L3:L203) -> 0.1516444943
A21: What is the linear coefficient b0 (-2 to 2)? | I21: The sum of the squares of the 200 deviations is | O21: =Calcs!M205 -> 1.666839231
C22: 196 | F22: =(C22-0)/100-2 -> -0.04
A24: What is the quadratic coefficient c0 (-1 to 1)?
C25: 72 | F25: =(C25-0)/100-1 -> -0.28
A27: Your quadratic polynomial is y = | E27: =TEXT(a0,"0.00")&" +" &TEXT(b0,"0.00")&"x + "&TEXT(c0,"0.00")&"x^2" -> 0.90 +-0.04x + -0.28x^2
A32: Click each item below for suggestions and investigations
D33: Item 1
D34: Item 2
D35: Item 3
D36: Item 4
D37: Item 5
A41: To access/download all the DIGMath Apps for Calculus
A42: Click this link: | C42: DIGMath for Calculus
A44: Created by: Sheldon P. Gordon
A45: Farmingdale State College
A46: Development of this module was supported by the
A47: NSF's Division of Undergraduate Education
A48: under grants DUE-0310123 and DUE-0442160.

Sheet Cubic
B1: Building Cubic Approximations
B2: to the Cosine Function
B4: This graphing utility lets you try to
B5: build the best cubic approximation
B6: to the cosine function
D7: y = cos x
C8: centered about x = 0
A11: Enter the interval for x:
C12: xMin = | D12: -1
C13: xMax = | D13: 2
A16: In the cubic approximation cos x » a0 + b0x + c0x2 + d0x3
A18: What is the constant coefficient a0 (-1 to 1)?
C19: 180 | F19: =(C19-0)/100-1 -> 0.8 | I19: The largest deviation at 200 evenly spaced points is | O19: =MAX(Calcs!S3:S203) -> 0.4728023059
A21: What is the linear coefficient b0 (-2 to 2)? | I21: The sum of the squares of the 200 deviations is | O21: =Calcs!T205 -> 12.25098097
C22: 200 | F22: =(C22-0)/100-2 -> 0.00
A24: What is the quadratic coefficient c0 (-1 to 1)?
C25: 39 | F25: =(C25-0)/100-1 -> -0.61
A27: What is the cubic coefficient d0 (-0.5 to 0.5)?
C28: 124 | F28: =(C28+0.5-0)/200-0.5 -> 0.12
A30: Your cubic polynomial is y = | E30: =TEXT(a00,"0.00")&" + "&TEXT(b00,"0.00")&"x + "&TEXT(c00,"0.00")&"x^2 + "&TEXT(d00,"0.00")&"x^3" -> 0.80 + 0.00x + -0.61x^2 + 0.12x^3
A35: Click each item below for suggestions and investigations
D36: Item 1
D37: Item 2
D38: Item 3
D39: Item 4
D40: Item 5
A44: To access/download all the DIGMath Apps for Calculus
A45: Click this link: | C45: DIGMath for Calculus
A47: Created by: Sheldon P. Gordon
A48: Farmingdale State College
A49: Development of this module was supported by the
A50: NSF's Division of Undergraduate Education
A51: under grants DUE-0310123 and DUE-0442160.

Sheet Quartic
B1: Building Quartic Approximations
B2: to the Cosine Function
B4: This graphing utility lets you try to
B5: build the best quartic approximation
B6: to the cosine function
D7: y = cos x
C8: centered about x = 0
A11: Enter the interval for x:
C12: xMin = | D12: -1
C13: xMax = | D13: 2
A16: In the quartic approximation cos x » a0 + b0x + c0x2 + d0x3 + e0x4
A18: What is the constant coefficient a0 (-1 to 1)?
C19: 198 | F19: =(C19-0)/100-1 -> 0.98 | I19: The largest deviation at 200 evenly spaced points is | O19: =MAX(Calcs!S3:S203) -> 0.4728023059
A21: What is the linear coefficient b0 (0 to 2)? | I21: The sum of the squares of the 200 deviations is | O21: =Calcs!T205 -> 12.25098097
C22: 10 | F22: =(C22-0)/100 -> 0.10
A24: What is the quadratic coefficient c0 (-1 to 1)?
C25: 0 | F25: =(C25-0)/100-1 -> -1
A27: What is the cubic coefficient d0 (-0.5 to 0.5)?
C28: 138 | F28: =(C28+0.5-0)/200-0.5 -> 0.19
A30: What is the quartic coefficient e0 (-0.5 to 0.5)?
C31: 82 | F31: =(C31+0.5-0)/200-0.5 -> -0.09
A33: Your quartic polynomial is y = | E33: =TEXT(a000,"0.00")&" + "&TEXT(b000,"0.00")&"x + "&TEXT(c000,"0.00")&"x^2 + "&TEXT(d000,"0.00")&"x^3 +"&TEXT(e000,"0.00")&"x^4" -> 0.98 + 0.10x + -1.00x^2 + 0.19x^3 +-0.09x^4
A38: Click each item below for suggestions and investigations
C39: Item 1
C40: Item 2
C41: Item 3
C42: Item 4
C43: Item 5
A47: To access/download all the DIGMath Apps for Calculus
A48: Click this link: | C48: DIGMath for Calculus
A50: Created by: Sheldon P. Gordon
A51: Farmingdale State College
A52: Development of this module was supported by the
A53: NSF's Division of Undergraduate Education
A54: under grants DUE-0310123 and DUE-0442160.

Sheet Quintic
B1: Building Quintic Approximations
B2: to the Cosine Function
B4: This graphing utility lets you try to
B5: build the best quintic approximation
B6: to the cosine function
D7: y = cos x
C8: centered about x = 0
A11: Enter the interval for x:
C12: xMin = | D12: -1
C13: xMax = | D13: 2
A16: In the quartic approximation cos x » a0 + b0x + c0x2 + d0x3 + e0x4 + f0x5
A18: What is the constant coefficient a0 (-1 to 1)?
C19: 100 | F19: =(C19-0)/100-1 -> 0 | I19: The largest deviation at 200 evenly spaced points is | O19: =MAX(Calcs!AF3:AF203) -> 1.02864451
A21: What is the linear coefficient b0 (0 to 2)? | I21: The sum of the squares of the 200 deviations is | O21: =Calcs!AH205 -> 180.3685433
C22: 100 | F22: =(C22-0)/100 -> 1.00
A24: What is the quadratic coefficient c0 (-1 to 1)?
C25: 121 | F25: =(C25-0)/100-1 -> 0.21
A27: What is the cubic coefficient d0 (-0.5 to 0.5)?
C28: 69 | F28: =(C28+0.5-0)/200-0.5 -> -0.15
A30: What is the quartic coefficient e0 (-0.5 to 0.5)?
C31: 65 | F31: =(C31+0.5-0)/200-0.5 -> -0.17
A33: What is the quintic coefficient f0 (-0.2 to 0.2)?
C34: 127 | F34: =(C34)/500-0.2 -> 0.054
A36: Your quintic polynomial is y = | E36: =TEXT(a0000,"0.00")&" + "&TEXT(b0000,"0.00")&"x + "&TEXT(c0000,"0.00")&"x^2 + "&TEXT(d0000,"0.000")&"x^3 + "&TEXT(e0000,"0.000")&"x^4 + "&TEXT(f0000,"0.000")&"x^5 " -> 0.00 + 1.00x + 0.21x^2 + -0.153x^3 + -0.173x^4 + 0.054x^5
A41: Click each item below for suggestions and investigations
C42: Item 1
C43: Item 2
C44: Item 3
C45: Item 4
C46: Item 5
A50: To access/download all the DIGMath Apps for Calculus
A51: Click this link: | C51: DIGMath for Calculus
A53: Created by: Sheldon P. Gordon
A54: Farmingdale State College
A55: Development of this module was supported by the
A56: NSF's Division of Undergraduate Education
A57: under grants DUE-0310123 and DUE-0442160.

Sheet 6th Degree
B1: Building 6th Degree Approximations
B2: to the Cosine Function
B4: This graphing utility lets you try to
B5: build the best 6th degree approximation
B6: to the cosine function
D7: y = cos x
C8: centered about x = 0
A11: Enter the interval for x:
C12: xMin = | D12: -1
C13: xMax = | D13: 2
A16: In the 6th degree approximation cos x » a0 + b0x + c0x2 + d0x3 + e0x4 + f0x5 + g0x6
A18: What is the constant coefficient a0 (-1 to 1)?
C19: 100 | F19: =(C19-0)/100-1 -> 0 | I19: The largest deviation at 200 evenly spaced points is | O19: =MAX(Calcs!AM3:AM203) -> 7.660146837
A21: What is the linear coefficient b0 (0 to 2)? | I21: The sum of the squares of the 200 deviations is | O21: =Calcs!AO205 -> 908.9419483
C22: 100 | F22: =(C22-0)/100 -> 1.00
A24: What is the quadratic coefficient c0 (-1 to 1)?
C25: 121 | F25: =(C25-0)/100-1 -> 0.21
A27: What is the cubic coefficient d0 (-0.5 to 0.5)?
C28: 69 | F28: =(C28+0.5-0)/200-0.5 -> -0.15
A30: What is the quartic coefficient e0 (-0.5 to 0.5)?
C31: 65 | F31: =(C31+0.5-0)/200-0.5 -> -0.17
A33: What is the quintic coefficient f0 (-0.2 to 0.2)?
C34: 109 | F34: =(C34)/500-0.2 -> 0.018
A36: What is the 6th degree coefficient g0 (-0.2 to 0.2)?
C37: 152 | F37: =(C37)/500-0.2 -> 0.104
A39: Your 6th degree polynomial is y = | E39: =TEXT(a00000,"0.00")&" + "&TEXT(b0000,"0.00")&"x + "&TEXT(c00000,"0.00")&"x^2 + "&TEXT(d00000,"0.000")&"x^3 + "&TEXT(e00000,"0.000")&"x^4 + "&TEXT(f00000,"0.000")&"x^5 +"&TEXT(g00000,"0.000")&"x^6 " -> 0.00 + 1.00x + 0.21x^2 + -0.153x^3 + -0.173x^4 + 0.018x^5 +0.104x^6
A41: Click each item below for suggestions and investigations
C42: Item 1
C43: Item 2
C44: Item 3
C45: Item 4
C46: Item 5
C47: Item 6
A51: To access/download all the DIGMath Apps for Calculus
A52: Click this link: | C52: DIGMath for Calculus
A54: Created by: Sheldon P. Gordon
A55: Farmingdale State College
A56: Development of this module was supported by the
A57: NSF's Division of Undergraduate Education
A58: under grants DUE-0310123 and DUE-0442160.

Sheet Calcs
B1: Linear | I1: Quadatic | P1: Cubic | W1: Quartic | AD1: Quintic | AK1: 6th degree
A2: x | B2: cos x | C2: P1(x) | D2: Difference | E2: ABS | F2: Squares | H2: x | I2: cos x | J2: P2(x) | K2: Difference | L2: ABS | M2: Squares | O2: x | P2: cos x | Q2: P3(x) | R2: Difference | S2: ABS | T2: Squares | V2: x | W2: cos x | X2: P4(x) | Y2: Difference | Z2: ABS | AA2: Squares | AC2: x | AD2: cos x | AE2: P5(x) | AF2: Difference | AG2: ABS | AH2: Squares | AJ2: x | AK2: cos x | AL2: P6(x) | AM2: Difference | AN2: ABS | AO2: Squares
A3: =a -> -1 | B3: =COS(A3) -> 0.54030 | C3: =aa00+bb00*A3 -> 0.90000 | D3: =C3-B3 -> 0.35970 | E3: =ABS(D3) -> 0.35970 | F3: =D3^2 -> 0.1294 | H3: =a -> -1 | I3: =COS(H3) -> 0.54030 | J3: =a0+b0*A3+c0*A3^2 -> 0.66000 | K3: =J3-I3 -> 0.11970 | L3: =ABS(K3) -> 0.11970 | M3: =K3^2 -> 0.0143 | O3: =aa -> -1 | P3: =COS(O3) -> 0.54030 | Q3: =a00+b00*O3+c00*O3^2+d00*A3^3 -> 0.06750 | R3: =Q3-P3 -> -0.47280 | S3: =ABS(R3) -> 0.47280 | T3: =R3^2 -> 0.2235 | V3: =aaa -> -1 | W3: =COS(V3) -> 0.54030 | X3: =a000+b000*V3+c000*V3^2+d000*O3^3+e000*O3^4 -> -0.40000 | Y3: =X3-W3 -> -0.94030 | Z3: =ABS(Y3) -> 0.94030 | AA3: =Y3^2 -> 0.8842 | AC3: =aaaa -> -1 | AD3: =COS(AC3) -> 0.54030 | AE3: =a0000+b0000*AC3+c0000*AC3^2+d0000*AC3^3+e0000*AC3^4+f0000*AC3^5 -> -0.86400 | AF3: =AE3-AD3 -> -1.40430 | AG3: =ABS(AF3) -> 1.40430 | AH3: =AF3^2 -> 1.9721 | AJ3: =aaaaa -> -1 | AK3: =COS(AJ3) -> 0.54030 | AL3: =a0000+b0000*AJ3+c0000*AJ3^2+d0000*AJ3^3+e0000*AJ3^4+f0000*AJ3^5+g00000*AJ3^6 -> -0.76000 | AM3: =AL3-AK3 -> -1.30030 | AN3: =ABS(AM3) -> 1.30030 | AO3: =AM3^2 -> 1.6908
A4: =A3+(b-a)/200 -> -0.985 | B4: =COS(A4) -> 0.55286 | C4: 0.90150 | D4: =C4-B4 -> 0.34864 | E4: =ABS(D4) -> 0.34864 | F4: =D4^2 -> 0.1215 | H4: =H3+(b-a)/200 -> -0.985 | I4: =COS(H4) -> 0.55286 | J4: 0.66774 | K4: =J4-I4 -> 0.11487 | L4: =ABS(K4) -> 0.11487 | M4: =K4^2 -> 0.0132 | O4: =O3+(bb-aa)/200 -> -0.985 | P4: =COS(O4) -> 0.55286 | Q4: 0.09109 | R4: =Q4-P4 -> -0.46177 | S4: =ABS(R4) -> 0.46177 | T4: =R4^2 -> 0.2132 | V4: =V3+(bbb-aaa)/200 -> -0.985 | W4: =COS(V4) -> 0.55286 | X4: -0.35506 | Y4: =X4-W4 -> -0.90792 | Z4: =ABS(Y4) -> 0.90792 | AA4: =Y4^2 -> 0.8243 | AC4: =AC3+(bbbb-aaaa)/200 -> -0.985 | AD4: =COS(AC4) -> 0.55286 | AE4: -0.84796 | AF4: =AE4-AD4 -> -1.40083 | AG4: =ABS(AF4) -> 1.40083 | AH4: =AF4^2 -> 1.9623 | AJ4: =AJ3+(bbbbb-aaaaa)/200 -> -0.985 | AK4: =COS(AJ4) -> 0.55286 | AL4: -0.75298 | AM4: =AL4-AK4 -> -1.30584 | AN4: =ABS(AM4) -> 1.30584 | AO4: =AM4^2 -> 1.7052
A5: -0.97 | B5: 0.56530 | C5: 0.90300 | D5: 0.33770 | E5: 0.33770 | F5: 0.1140 | H5: -0.97 | I5: 0.56530 | J5: 0.67535 | K5: 0.11005 | L5: 0.11005 | M5: 0.0121 | O5: -0.97 | P5: 0.56530 | Q5: 0.11425 | R5: -0.45105 | S5: 0.45105 | T5: 0.2034 | V5: -0.97 | W5: 0.56530 | X5: -0.31105 | Y5: -0.87635 | Z5: 0.87635 | AA5: 0.7680 | AC5: -0.97 | AD5: 0.56530 | AE5: -0.83231 | AF5: -1.39761 | AG5: 1.39761 | AH5: 1.9533 | AJ5: -0.97 | AK5: 0.56530 | AL5: -0.74568 | AM5: -1.31098 | AN5: 1.31098 | AO5: 1.7187
A6: -0.955 | B6: 0.57761 | C6: 0.90450 | D6: 0.32689 | E6: 0.32689 | F6: 0.1069 | H6: -0.955 | I6: 0.57761 | J6: 0.68283 | K6: 0.10522 | L6: 0.10522 | M6: 0.0111 | O6: -0.955 | P6: 0.57761 | Q6: 0.13697 | R6: -0.44064 | S6: 0.44064 | T6: 0.1942 | V6: -0.955 | W6: 0.57761 | X6: -0.26797 | Y6: -0.84558 | Z6: 0.84558 | AA6: 0.7150 | AC6: -0.955 | AD6: 0.57761 | AE6: -0.81703 | AF6: -1.39464 | AG6: 1.39464 | AH6: 1.9450 | AJ6: -0.955 | AK6: 0.57761 | AL6: -0.73813 | AM6: -1.31574 | AN6: 1.31574 | AO6: 1.7312
A7: -0.94 | B7: 0.58979 | C7: 0.90600 | D7: 0.31621 | E7: 0.31621 | F7: 0.1000 | H7: -0.94 | I7: 0.58979 | J7: 0.69019 | K7: 0.10040 | L7: 0.10040 | M7: 0.0101 | O7: -0.94 | P7: 0.58979 | Q7: 0.15926 | R7: -0.43053 | S7: 0.43053 | T7: 0.1854 | V7: -0.94 | W7: 0.58979 | X7: -0.22580 | Y7: -0.81559 | Z7: 0.81559 | AA7: 0.6652 | AC7: -0.94 | AD7: 0.58979 | AE7: -0.80209 | AF7: -1.39188 | AG7: 1.39188 | AH7: 1.9373 | AJ7: -0.94 | AK7: 0.58979 | AL7: -0.73034 | AM7: -1.32013 | AN7: 1.32013 | AO7: 1.7427
A8: -0.925 | B8: 0.60183 | C8: 0.90750 | D8: 0.30567 | E8: 0.30567 | F8: 0.0934 | H8: -0.925 | I8: 0.60183 | J8: 0.69743 | K8: 0.09559 | L8: 0.09559 | M8: 0.0091 | O8: -0.925 | P8: 0.60183 | Q8: 0.18112 | R8: -0.42072 | S8: 0.42072 | T8: 0.1770 | V8: -0.925 | W8: 0.60183 | X8: -0.18454 | Y8: -0.78637 | Z8: 0.78637 | AA8: 0.6184 | AC8: -0.925 | AD8: 0.60183 | AE8: -0.78748 | AF8: -1.38931 | AG8: 1.38931 | AH8: 1.9302 | AJ8: -0.925 | AK8: 0.60183 | AL8: -0.72233 | AM8: -1.32417 | AN8: 1.32417 | AO8: 1.7534
A9: -0.91 | B9: 0.61375 | C9: 0.90900 | D9: 0.29525 | E9: 0.29525 | F9: 0.0872 | H9: -0.91 | I9: 0.61375 | J9: 0.70453 | K9: 0.09079 | L9: 0.09079 | M9: 0.0082 | O9: -0.91 | P9: 0.61375 | Q9: 0.20255 | R9: -0.41120 | S9: 0.41120 | T9: 0.1691 | V9: -0.91 | W9: 0.61375 | X9: -0.14417 | Y9: -0.75791 | Z9: 0.75791 | AA9: 0.5744 | AC9: -0.91 | AD9: 0.61375 | AE9: -0.77317 | AF9: -1.38691 | AG9: 1.38691 | AH9: 1.9235 | AJ9: -0.91 | AK9: 0.61375 | AL9: -0.71411 | AM9: -1.32786 | AN9: 1.32786 | AO9: 1.7632
A10: -0.895 | B10: 0.62552 | C10: 0.91050 | D10: 0.28498 | E10: 0.28498 | F10: 0.0812 | H10: -0.895 | I10: 0.62552 | J10: 0.71151 | K10: 0.08599 | L10: 0.08599 | M10: 0.0074 | O10: -0.895 | P10: 0.62552 | Q10: 0.22355 | R10: -0.40197 | S10: 0.40197 | T10: 0.1616 | V10: -0.895 | W10: 0.62552 | X10: -0.10468 | Y10: -0.73019 | Z10: 0.73019 | AA10: 0.5332 | AC10: -0.895 | AD10: 0.62552 | AE10: -0.75915 | AF10: -1.38467 | AG10: 1.38467 | AH10: 1.9173 | AJ10: -0.895 | AK10: 0.62552 | AL10: -0.70570 | AM10: -1.33121 | AN10: 1.33121 | AO10: 1.7721
A11: -0.88 | B11: 0.63715 | C11: 0.91200 | D11: 0.27485 | E11: 0.27485 | F11: 0.0755 | H11: -0.88 | I11: 0.63715 | J11: 0.71837 | K11: 0.08122 | L11: 0.08122 | M11: 0.0066 | O11: -0.88 | P11: 0.63715 | Q11: 0.24414 | R11: -0.39302 | S11: 0.39302 | T11: 0.1545 | V11: -0.88 | W11: 0.63715 | X11: -0.06606 | Y11: -0.70321 | Z11: 0.70321 | AA11: 0.4945 | AC11: -0.88 | AD11: 0.63715 | AE11: -0.74540 | AF11: -1.38255 | AG11: 1.38255 | AH11: 1.9114 | AJ11: -0.88 | AK11: 0.63715 | AL11: -0.69710 | AM11: -1.33425 | AN11: 1.33425 | AO11: 1.7802
A12: -0.865 | B12: 0.64864 | C12: 0.91350 | D12: 0.26486 | E12: 0.26486 | F12: 0.0702 | H12: -0.865 | I12: 0.64864 | J12: 0.72510 | K12: 0.07646 | L12: 0.07646 | M12: 0.0058 | O12: -0.865 | P12: 0.64864 | Q12: 0.26430 | R12: -0.38434 | S12: 0.38434 | T12: 0.1477 | V12: -0.865 | W12: 0.64864 | X12: -0.02830 | Y12: -0.67694 | Z12: 0.67694 | AA12: 0.4582 | AC12: -0.865 | AD12: 0.64864 | AE12: -0.73190 | AF12: -1.38054 | AG12: 1.38054 | AH12: 1.9059 | AJ12: -0.865 | AK12: 0.64864 | AL12: -0.68833 | AM12: -1.33697 | AN12: 1.33697 | AO12: 1.7875
A13: -0.85 | B13: 0.65998 | C13: 0.91500 | D13: 0.25502 | E13: 0.25502 | F13: 0.0650 | H13: -0.85 | I13: 0.65998 | J13: 0.73170 | K13: 0.07172 | L13: 0.07172 | M13: 0.0051 | O13: -0.85 | P13: 0.65998 | Q13: 0.28404 | R13: -0.37594 | S13: 0.37594 | T13: 0.1413 | V13: -0.85 | W13: 0.65998 | X13: 0.00861 | Y13: -0.65138 | Z13: 0.65138 | AA13: 0.4243 | AC13: -0.85 | AD13: 0.65998 | AE13: -0.71863 | AF13: -1.37861 | AG13: 1.37861 | AH13: 1.9006 | AJ13: -0.85 | AK13: 0.65998 | AL13: -0.67940 | AM13: -1.33939 | AN13: 1.33939 | AO13: 1.7940
A14: -0.835 | B14: 0.67118 | C14: 0.91650 | D14: 0.24532 | E14: 0.24532 | F14: 0.0602 | H14: -0.835 | I14: 0.67118 | J14: 0.73818 | K14: 0.06700 | L14: 0.06700 | M14: 0.0045 | O14: -0.835 | P14: 0.67118 | Q14: 0.30338 | R14: -0.36780 | S14: 0.36780 | T14: 0.1353 | V14: -0.835 | W14: 0.67118 | X14: 0.04467 | Y14: -0.62651 | Z14: 0.62651 | AA14: 0.3925 | AC14: -0.835 | AD14: 0.67118 | AE14: -0.70558 | AF14: -1.37675 | AG14: 1.37675 | AH14: 1.8954 | AJ14: -0.835 | AK14: 0.67118 | AL14: -0.67033 | AM14: -1.34150 | AN14: 1.34150 | AO14: 1.7996
A15: -0.82 | B15: 0.68222 | C15: 0.91800 | D15: 0.23578 | E15: 0.23578 | F15: 0.0556 | H15: -0.82 | I15: 0.68222 | J15: 0.74453 | K15: 0.06231 | L15: 0.06231 | M15: 0.0039 | O15: -0.82 | P15: 0.68222 | Q15: 0.32229 | R15: -0.35993 | S15: 0.35993 | T15: 0.1295 | V15: -0.82 | W15: 0.68222 | X15: 0.07990 | Y15: -0.60232 | Z15: 0.60232 | AA15: 0.3628 | AC15: -0.82 | AD15: 0.68222 | AE15: -0.69272 | AF15: -1.37494 | AG15: 1.37494 | AH15: 1.8905 | AJ15: -0.82 | AK15: 0.68222 | AL15: -0.66111 | AM15: -1.34333 | AN15: 1.34333 | AO15: 1.8045
A16: -0.805 | B16: 0.69311 | C16: 0.91950 | D16: 0.22639 | E16: 0.22639 | F16: 0.0513 | H16: -0.805 | I16: 0.69311 | J16: 0.75075 | K16: 0.05764 | L16: 0.05764 | M16: 0.0033 | O16: -0.805 | P16: 0.69311 | Q16: 0.34080 | R16: -0.35231 | S16: 0.35231 | T16: 0.1241 | V16: -0.805 | W16: 0.69311 | X16: 0.11431 | Y16: -0.57880 | Z16: 0.57880 | AA16: 0.3350 | AC16: -0.805 | AD16: 0.69311 | AE16: -0.68006 | AF16: -1.37317 | AG16: 1.37317 | AH16: 1.8856 | AJ16: -0.805 | AK16: 0.69311 | AL16: -0.65175 | AM16: -1.34487 | AN16: 1.34487 | AO16: 1.8087
A17: -0.79 | B17: 0.70385 | C17: 0.92100 | D17: 0.21715 | E17: 0.21715 | F17: 0.0472 | H17: -0.79 | I17: 0.70385 | J17: 0.75685 | K17: 0.05301 | L17: 0.05301 | M17: 0.0028 | O17: -0.79 | P17: 0.70385 | Q17: 0.35890 | R17: -0.34494 | S17: 0.34494 | T17: 0.1190 | V17: -0.79 | W17: 0.70385 | X17: 0.14791 | Y17: -0.55594 | Z17: 0.55594 | AA17: 0.3091 | AC17: -0.79 | AD17: 0.70385 | AE17: -0.66756 | AF17: -1.37140 | AG17: 1.37140 | AH17: 1.8807 | AJ17: -0.79 | AK17: 0.70385 | AL17: -0.64227 | AM17: -1.34612 | AN17: 1.34612 | AO17: 1.8120
A18: -0.775 | B18: 0.71442 | C18: 0.92250 | D18: 0.20808 | E18: 0.20808 | F18: 0.0433 | H18: -0.775 | I18: 0.71442 | J18: 0.76283 | K18: 0.04840 | L18: 0.04840 | M18: 0.0023 | O18: -0.775 | P18: 0.71442 | Q18: 0.37660 | R18: -0.33782 | S18: 0.33782 | T18: 0.1141 | V18: -0.775 | W18: 0.71442 | X18: 0.18070 | Y18: -0.53372 | Z18: 0.53372 | AA18: 0.2849 | AC18: -0.775 | AD18: 0.71442 | AE18: -0.65521 | AF18: -1.36963 | AG18: 1.36963 | AH18: 1.8759 | AJ18: -0.775 | AK18: 0.71442 | AL18: -0.63267 | AM18: -1.34710 | AN18: 1.34710 | AO18: 1.8147
A19: -0.76 | B19: 0.72484 | C19: 0.92400 | D19: 0.19916 | E19: 0.19916 | F19: 0.0397 | H19: -0.76 | I19: 0.72484 | J19: 0.76867 | K19: 0.04384 | L19: 0.04384 | M19: 0.0019 | O19: -0.76 | P19: 0.72484 | Q19: 0.39389 | R19: -0.33095 | S19: 0.33095 | T19: 0.1095 | V19: -0.76 | W19: 0.72484 | X19: 0.21271 | Y19: -0.51213 | Z19: 0.51213 | AA19: 0.2623 | AC19: -0.76 | AD19: 0.72484 | AE19: -0.64300 | AF19: -1.36784 | AG19: 1.36784 | AH19: 1.8710 | AJ19: -0.76 | AK19: 0.72484 | AL19: -0.62296 | AM19: -1.34780 | AN19: 1.34780 | AO19: 1.8166
A20: -0.745 | B20: 0.73509 | C20: 0.92550 | D20: 0.19041 | E20: 0.19041 | F20: 0.0363 | H20: -0.745 | I20: 0.73509 | J20: 0.77439 | K20: 0.03931 | L20: 0.03931 | M20: 0.0015 | O20: -0.745 | P20: 0.73509 | Q20: 0.41078 | R20: -0.32431 | S20: 0.32431 | T20: 0.1052 | V20: -0.745 | W20: 0.73509 | X20: 0.24392 | Y20: -0.49117 | Z20: 0.49117 | AA20: 0.2412 | AC20: -0.745 | AD20: 0.73509 | AE20: -0.63092 | AF20: -1.36601 | AG20: 1.36601 | AH20: 1.8660 | AJ20: -0.745 | AK20: 0.73509 | AL20: -0.61314 | AM20: -1.34823 | AN20: 1.34823 | AO20: 1.8177
A21: -0.73 | B21: 0.74517 | C21: 0.92700 | D21: 0.18183 | E21: 0.18183 | F21: 0.0331 | H21: -0.73 | I21: 0.74517 | J21: 0.77999 | K21: 0.03481 | L21: 0.03481 | M21: 0.0012 | O21: -0.73 | P21: 0.74517 | Q21: 0.42728 | R21: -0.31790 | S21: 0.31790 | T21: 0.1011 | V21: -0.73 | W21: 0.74517 | X21: 0.27437 | Y21: -0.47081 | Z21: 0.47081 | AA21: 0.2217 | AC21: -0.73 | AD21: 0.74517 | AE21: -0.61895 | AF21: -1.36412 | AG21: 1.36412 | AH21: 1.8608 | AJ21: -0.73 | AK21: 0.74517 | AL21: -0.60321 | AM21: -1.34838 | AN21: 1.34838 | AO21: 1.8181
A22: -0.715 | B22: 0.75509 | C22: 0.92850 | D22: 0.17341 | E22: 0.17341 | F22: 0.0301 | H22: -0.715 | I22: 0.75509 | J22: 0.78546 | K22: 0.03036 | L22: 0.03036 | M22: 0.0009 | O22: -0.715 | P22: 0.75509 | Q22: 0.44338 | R22: -0.31172 | S22: 0.31172 | T22: 0.0972 | V22: -0.715 | W22: 0.75509 | X22: 0.30404 | Y22: -0.45105 | Z22: 0.45105 | AA22: 0.2034 | AC22: -0.715 | AD22: 0.75509 | AE22: -0.60707 | AF22: -1.36217 | AG22: 1.36217 | AH22: 1.8555 | AJ22: -0.715 | AK22: 0.75509 | AL22: -0.59318 | AM22: -1.34827 | AN22: 1.34827 | AO22: 1.8178
A23: -0.7 | B23: 0.76484 | C23: 0.93000 | D23: 0.16516 | E23: 0.16516 | F23: 0.0273 | H23: -0.7 | I23: 0.76484 | J23: 0.79080 | K23: 0.02596 | L23: 0.02596 | M23: 0.0007 | O23: -0.7 | P23: 0.76484 | Q23: 0.45908 | R23: -0.30576 | S23: 0.30576 | T23: 0.0935 | V23: -0.7 | W23: 0.76484 | X23: 0.33296 | Y23: -0.43188 | Z23: 0.43188 | AA23: 0.1865 | AC23: -0.7 | AD23: 0.76484 | AE23: -0.59529 | AF23: -1.36013 | AG23: 1.36013 | AH23: 1.8499 | AJ23: -0.7 | AK23: 0.76484 | AL23: -0.58305 | AM23: -1.34789 | AN23: 1.34789 | AO23: 1.8168
A24: -0.685 | B24: 0.77442 | C24: 0.93150 | D24: 0.15708 | E24: 0.15708 | F24: 0.0247 | H24: -0.685 | I24: 0.77442 | J24: 0.79602 | K24: 0.02160 | L24: 0.02160 | M24: 0.0005 | O24: -0.685 | P24: 0.77442 | Q24: 0.47440 | R24: -0.30002 | S24: 0.30002 | T24: 0.0900 | V24: -0.685 | W24: 0.77442 | X24: 0.36114 | Y24: -0.41328 | Z24: 0.41328 | AA24: 0.1708 | AC24: -0.685 | AD24: 0.77442 | AE24: -0.58357 | AF24: -1.35799 | AG24: 1.35799 | AH24: 1.8441 | AJ24: -0.685 | AK24: 0.77442 | AL24: -0.57283 | AM24: -1.34724 | AN24: 1.34724 | AO24: 1.8151
A25: -0.67 | B25: 0.78382 | C25: 0.93300 | D25: 0.14918 | E25: 0.14918 | F25: 0.0223 | H25: -0.67 | I25: 0.78382 | J25: 0.80111 | K25: 0.01729 | L25: 0.01729 | M25: 0.0003 | O25: -0.67 | P25: 0.78382 | Q25: 0.48933 | R25: -0.29449 | S25: 0.29449 | T25: 0.0867 | V25: -0.67 | W25: 0.78382 | X25: 0.38857 | Y25: -0.39525 | Z25: 0.39525 | AA25: 0.1562 | AC25: -0.67 | AD25: 0.78382 | AE25: -0.57192 | AF25: -1.35574 | AG25: 1.35574 | AH25: 1.8380 | AJ25: -0.67 | AK25: 0.78382 | AL25: -0.56251 | AM25: -1.34633 | AN25: 1.34633 | AO25: 1.8126
A26: -0.655 | B26: 0.79305 | C26: 0.93450 | D26: 0.14145 | E26: 0.14145 | F26: 0.0200 | H26: -0.655 | I26: 0.79305 | J26: 0.80607 | K26: 0.01303 | L26: 0.01303 | M26: 0.0002 | O26: -0.655 | P26: 0.79305 | Q26: 0.50387 | R26: -0.28918 | S26: 0.28918 | T26: 0.0836 | V26: -0.655 | W26: 0.79305 | X26: 0.41527 | Y26: -0.37777 | Z26: 0.37777 | AA26: 0.1427 | AC26: -0.655 | AD26: 0.79305 | AE26: -0.56031 | AF26: -1.35336 | AG26: 1.35336 | AH26: 1.8316 | AJ26: -0.655 | AK26: 0.79305 | AL26: -0.55210 | AM26: -1.34515 | AN26: 1.34515 | AO26: 1.8094
A27: -0.64 | B27: 0.80210 | C27: 0.93600 | D27: 0.13390 | E27: 0.13390 | F27: 0.0179 | H27: -0.64 | I27: 0.80210 | J27: 0.81091 | K27: 0.00882 | L27: 0.00882 | M27: 0.0001 | O27: -0.64 | P27: 0.80210 | Q27: 0.51803 | R27: -0.28406 | S27: 0.28406 | T27: 0.0807 | V27: -0.64 | W27: 0.80210 | X27: 0.44126 | Y27: -0.36084 | Z27: 0.36084 | AA27: 0.1302 | AC27: -0.64 | AD27: 0.80210 | AE27: -0.54875 | AF27: -1.35084 | AG27: 1.35084 | AH27: 1.8248 | AJ27: -0.64 | AK27: 0.80210 | AL27: -0.54160 | AM27: -1.34369 | AN27: 1.34369 | AO27: 1.8055
A28: -0.625 | B28: 0.81096 | C28: 0.93750 | D28: 0.12654 | E28: 0.12654 | F28: 0.0160 | H28: -0.625 | I28: 0.81096 | J28: 0.81563 | K28: 0.00466 | L28: 0.00466 | M28: 0.0000 | O28: -0.625 | P28: 0.81096 | Q28: 0.53181 | R28: -0.27915 | S28: 0.27915 | T28: 0.0779 | V28: -0.625 | W28: 0.81096 | X28: 0.46653 | Y28: -0.34444 | Z28: 0.34444 | AA28: 0.1186 | AC28: -0.625 | AD28: 0.81096 | AE28: -0.53721 | AF28: -1.34817 | AG28: 1.34817 | AH28: 1.8176 | AJ28: -0.625 | AK28: 0.81096 | AL28: -0.53101 | AM28: -1.34197 | AN28: 1.34197 | AO28: 1.8009
A29: -0.61 | B29: 0.81965 | C29: 0.93900 | D29: 0.11935 | E29: 0.11935 | F29: 0.0142 | H29: -0.61 | I29: 0.81965 | J29: 0.82021 | K29: 0.00056 | L29: 0.00056 | M29: 0.0000 | O29: -0.61 | P29: 0.81965 | Q29: 0.54521 | R29: -0.27443 | S29: 0.27443 | T29: 0.0753 | V29: -0.61 | W29: 0.81965 | X29: 0.49109 | Y29: -0.32856 | Z29: 0.32856 | AA29: 0.1079 | AC29: -0.61 | AD29: 0.81965 | AE29: -0.52569 | AF29: -1.34534 | AG29: 1.34534 | AH29: 1.8099 | AJ29: -0.61 | AK29: 0.81965 | AL29: -0.52033 | AM29: -1.33998 | AN29: 1.33998 | AO29: 1.7955
A30: -0.595 | B30: 0.82815 | C30: 0.94050 | D30: 0.11235 | E30: 0.11235 | F30: 0.0126 | H30: -0.595 | I30: 0.82815 | J30: 0.82467 | K30: -0.00348 | L30: 0.00348 | M30: 0.0000 | O30: -0.595 | P30: 0.82815 | Q30: 0.55824 | R30: -0.26991 | S30: 0.26991 | T30: 0.0729 | V30: -0.595 | W30: 0.82815 | X30: 0.51496 | Y30: -0.31319 | Z30: 0.31319 | AA30: 0.0981 | AC30: -0.595 | AD30: 0.82815 | AE30: -0.51418 | AF30: -1.34233 | AG30: 1.34233 | AH30: 1.8018 | AJ30: -0.595 | AK30: 0.82815 | AL30: -0.50956 | AM30: -1.33771 | AN30: 1.33771 | AO30: 1.7895
A31: -0.58 | B31: 0.83646 | C31: 0.94200 | D31: 0.10554 | E31: 0.10554 | F31: 0.0111 | H31: -0.58 | I31: 0.83646 | J31: 0.82901 | K31: -0.00745 | L31: 0.00745 | M31: 0.0001 | O31: -0.58 | P31: 0.83646 | Q31: 0.57089 | R31: -0.26557 | S31: 0.26557 | T31: 0.0705 | V31: -0.58 | W31: 0.83646 | X31: 0.53814 | Y31: -0.29832 | Z31: 0.29832 | AA31: 0.0890 | AC31: -0.58 | AD31: 0.83646 | AE31: -0.50267 | AF31: -1.33913 | AG31: 1.33913 | AH31: 1.7933 | AJ31: -0.58 | AK31: 0.83646 | AL31: -0.49871 | AM31: -1.33517 | AN31: 1.33517 | AO31: 1.7827
A32: -0.565 | B32: 0.84459 | C32: 0.94350 | D32: 0.09891 | E32: 0.09891 | F32: 0.0098 | H32: -0.565 | I32: 0.84459 | J32: 0.83322 | K32: -0.01137 | L32: 0.01137 | M32: 0.0001 | O32: -0.565 | P32: 0.84459 | Q32: 0.58318 | R32: -0.26141 | S32: 0.26141 | T32: 0.0683 | V32: -0.565 | W32: 0.84459 | X32: 0.56064 | Y32: -0.28395 | Z32: 0.28395 | AA32: 0.0806 | AC32: -0.565 | AD32: 0.84459 | AE32: -0.49115 | AF32: -1.33573 | AG32: 1.33573 | AH32: 1.7842 | AJ32: -0.565 | AK32: 0.84459 | AL32: -0.48776 | AM32: -1.33235 | AN32: 1.33235 | AO32: 1.7752
A33: -0.55 | B33: 0.85252 | C33: 0.94500 | D33: 0.09248 | E33: 0.09248 | F33: 0.0086 | H33: -0.55 | I33: 0.85252 | J33: 0.83730 | K33: -0.01522 | L33: 0.01522 | M33: 0.0002 | O33: -0.55 | P33: 0.85252 | Q33: 0.59509 | R33: -0.25743 | S33: 0.25743 | T33: 0.0663 | V33: -0.55 | W33: 0.85252 | X33: 0.58247 | Y33: -0.27006 | Z33: 0.27006 | AA33: 0.0729 | AC33: -0.55 | AD33: 0.85252 | AE33: -0.47961 | AF33: -1.33213 | AG33: 1.33213 | AH33: 1.7746 | AJ33: -0.55 | AK33: 0.85252 | AL33: -0.47673 | AM33: -1.32925 | AN33: 1.32925 | AO33: 1.7669
A34: -0.535 | B34: 0.86027 | C34: 0.94650 | D34: 0.08623 | E34: 0.08623 | F34: 0.0074 | H34: -0.535 | I34: 0.86027 | J34: 0.84126 | K34: -0.01901 | L34: 0.01901 | M34: 0.0004 | O34: -0.535 | P34: 0.86027 | Q34: 0.60664 | R34: -0.25362 | S34: 0.25362 | T34: 0.0643 | V34: -0.535 | W34: 0.86027 | X34: 0.60363 | Y34: -0.25664 | Z34: 0.25664 | AA34: 0.0659 | AC34: -0.535 | AD34: 0.86027 | AE34: -0.46804 | AF34: -1.32831 | AG34: 1.32831 | AH34: 1.7644 | AJ34: -0.535 | AK34: 0.86027 | AL34: -0.46560 | AM34: -1.32587 | AN34: 1.32587 | AO34: 1.7579
A35: -0.52 | B35: 0.86782 | C35: 0.94800 | D35: 0.08018 | E35: 0.08018 | F35: 0.0064 | H35: -0.52 | I35: 0.86782 | J35: 0.84509 | K35: -0.02273 | L35: 0.02273 | M35: 0.0005 | O35: -0.52 | P35: 0.86782 | Q35: 0.61783 | R35: -0.24999 | S35: 0.24999 | T35: 0.0625 | V35: -0.52 | W35: 0.86782 | X35: 0.62414 | Y35: -0.24368 | Z35: 0.24368 | AA35: 0.0594 | AC35: -0.52 | AD35: 0.86782 | AE35: -0.45644 | AF35: -1.32426 | AG35: 1.32426 | AH35: 1.7537 | AJ35: -0.52 | AK35: 0.86782 | AL35: -0.45438 | AM35: -1.32220 | AN35: 1.32220 | AO35: 1.7482
A36: =A35+(b-a)/200 -> -0.505 | B36: 0.87517 | C36: 0.94950 | D36: 0.07433 | E36: 0.07433 | F36: 0.0055 | H36: -0.505 | I36: 0.87517 | J36: 0.84879 | K36: -0.02638 | L36: 0.02638 | M36: 0.0007 | O36: =O35+(bb-aa)/200 -> -0.505 | P36: 0.87517 | Q36: 0.62866 | R36: -0.24652 | S36: 0.24652 | T36: 0.0608 | V36: =V35+(bbb-aaa)/200 -> -0.505 | W36: 0.87517 | X36: 0.64399 | Y36: -0.23118 | Z36: 0.23118 | AA36: 0.0534 | AC36: =AC35+(bbbb-aaaa)/200 -> -0.505 | AD36: 0.87517 | AE36: -0.44480 | AF36: -1.31997 | AG36: 1.31997 | AH36: 1.7423 | AJ36: =AJ35+(bbbbb-aaaaa)/200 -> -0.505 | AK36: 0.87517 | AL36: -0.44307 | AM36: -1.31825 | AN36: 1.31825 | AO36: 1.7378
A37: -0.49 | B37: 0.88233 | C37: 0.95100 | D37: 0.06867 | E37: 0.06867 | F37: 0.0047 | H37: -0.49 | I37: 0.88233 | J37: 0.85237 | K37: -0.02996 | L37: 0.02996 | M37: 0.0009 | O37: -0.49 | P37: 0.88233 | Q37: 0.63913 | R37: -0.24321 | S37: 0.24321 | T37: 0.0591 | V37: -0.49 | W37: 0.88233 | X37: 0.66321 | Y37: -0.21912 | Z37: 0.21912 | AA37: 0.0480 | AC37: -0.49 | AD37: 0.88233 | AE37: -0.43311 | AF37: -1.31544 | AG37: 1.31544 | AH37: 1.7304 | AJ37: -0.49 | AK37: 0.88233 | AL37: -0.43167 | AM37: -1.31400 | AN37: 1.31400 | AO37: 1.7266
A38: -0.475 | B38: 0.88929 | C38: 0.95250 | D38: 0.06321 | E38: 0.06321 | F38: 0.0040 | H38: -0.475 | I38: 0.88929 | J38: 0.85583 | K38: -0.03347 | L38: 0.03347 | M38: 0.0011 | O38: -0.475 | P38: 0.88929 | Q38: 0.64924 | R38: -0.24005 | S38: 0.24005 | T38: 0.0576 | V38: -0.475 | W38: 0.88929 | X38: 0.68179 | Y38: -0.20750 | Z38: 0.20750 | AA38: 0.0431 | AC38: -0.475 | AD38: 0.88929 | AE38: -0.42136 | AF38: -1.31065 | AG38: 1.31065 | AH38: 1.7178 | AJ38: -0.475 | AK38: 0.88929 | AL38: -0.42017 | AM38: -1.30946 | AN38: 1.30946 | AO38: 1.7147
A39: -0.46 | B39: 0.89605 | C39: 0.95400 | D39: 0.05795 | E39: 0.05795 | F39: 0.0034 | H39: -0.46 | I39: 0.89605 | J39: 0.85915 | K39: -0.03690 | L39: 0.03690 | M39: 0.0014 | O39: -0.46 | P39: 0.89605 | Q39: 0.65900 | R39: -0.23705 | S39: 0.23705 | T39: 0.0562 | V39: -0.46 | W39: 0.89605 | X39: 0.69975 | Y39: -0.19631 | Z39: 0.19631 | AA39: 0.0385 | AC39: -0.46 | AD39: 0.89605 | AE39: -0.40956 | AF39: -1.30561 | AG39: 1.30561 | AH39: 1.7046 | AJ39: -0.46 | AK39: 0.89605 | AL39: -0.40857 | AM39: -1.30462 | AN39: 1.30462 | AO39: 1.7020
A40: -0.445 | B40: 0.90261 | C40: 0.95550 | D40: 0.05289 | E40: 0.05289 | F40: 0.0028 | H40: -0.445 | I40: 0.90261 | J40: 0.86235 | K40: -0.04026 | L40: 0.04026 | M40: 0.0016 | O40: -0.445 | P40: 0.90261 | Q40: 0.66841 | R40: -0.23420 | S40: 0.23420 | T40: 0.0548 | V40: -0.445 | W40: 0.90261 | X40: 0.71708 | Y40: -0.18553 | Z40: 0.18553 | AA40: 0.0344 | AC40: -0.445 | AD40: 0.90261 | AE40: -0.39768 | AF40: -1.30029 | AG40: 1.30029 | AH40: 1.6908 | AJ40: -0.445 | AK40: 0.90261 | AL40: -0.39688 | AM40: -1.29949 | AN40: 1.29949 | AO40: 1.6887
A41: -0.43 | B41: 0.90897 | C41: 0.95700 | D41: 0.04803 | E41: 0.04803 | F41: 0.0023 | H41: -0.43 | I41: 0.90897 | J41: 0.86543 | K41: -0.04354 | L41: 0.04354 | M41: 0.0019 | O41: -0.43 | P41: 0.90897 | Q41: 0.67747 | R41: -0.23149 | S41: 0.23149 | T41: 0.0536 | V41: -0.43 | W41: 0.90897 | X41: 0.73380 | Y41: -0.17516 | Z41: 0.17516 | AA41: 0.0307 | AC41: -0.43 | AD41: 0.90897 | AE41: -0.38574 | AF41: -1.29470 | AG41: 1.29470 | AH41: 1.6763 | AJ41: -0.43 | AK41: 0.90897 | AL41: -0.38508 | AM41: -1.29405 | AN41: 1.29405 | AO41: 1.6746
A42: -0.415 | B42: 0.91512 | C42: 0.95850 | D42: 0.04338 | E42: 0.04338 | F42: 0.0019 | H42: -0.415 | I42: 0.91512 | J42: 0.86838 | K42: -0.04674 | L42: 0.04674 | M42: 0.0022 | O42: -0.415 | P42: 0.91512 | Q42: 0.68619 | R42: -0.22893 | S42: 0.22893 | T42: 0.0524 | V42: -0.415 | W42: 0.91512 | X42: 0.74992 | Y42: -0.16520 | Z42: 0.16520 | AA42: 0.0273 | AC42: -0.415 | AD42: 0.91512 | AE42: -0.37371 | AF42: -1.28883 | AG42: 1.28883 | AH42: 1.6611 | AJ42: -0.415 | AK42: 0.91512 | AL42: -0.37318 | AM42: -1.28830 | AN42: 1.28830 | AO42: 1.6597
A43: -0.4 | B43: 0.92106 | C43: 0.96000 | D43: 0.03894 | E43: 0.03894 | F43: 0.0015 | H43: -0.4 | I43: 0.92106 | J43: 0.87120 | K43: -0.04986 | L43: 0.04986 | M43: 0.0025 | O43: -0.4 | P43: 0.92106 | Q43: 0.69456 | R43: -0.22650 | S43: 0.22650 | T43: 0.0513 | V43: -0.4 | W43: 0.92106 | X43: 0.76544 | Y43: -0.15562 | Z43: 0.15562 | AA43: 0.0242 | AC43: -0.4 | AD43: 0.92106 | AE43: -0.36161 | AF43: -1.28267 | AG43: 1.28267 | AH43: 1.6452 | AJ43: -0.4 | AK43: 0.92106 | AL43: -0.36118 | AM43: -1.28224 | AN43: 1.28224 | AO43: 1.6441
A44: -0.385 | B44: 0.92680 | C44: 0.96150 | D44: 0.03470 | E44: 0.03470 | F44: 0.0012 | H44: -0.385 | I44: 0.92680 | J44: 0.87390 | K44: -0.05290 | L44: 0.05290 | M44: 0.0028 | O44: -0.385 | P44: 0.92680 | Q44: 0.70259 | R44: -0.22421 | S44: 0.22421 | T44: 0.0503 | V44: -0.385 | W44: 0.92680 | X44: 0.78037 | Y44: -0.14643 | Z44: 0.14643 | AA44: 0.0214 | AC44: -0.385 | AD44: 0.92680 | AE44: -0.34942 | AF44: -1.27622 | AG44: 1.27622 | AH44: 1.6287 | AJ44: -0.385 | AK44: 0.92680 | AL44: -0.34908 | AM44: -1.27588 | AN44: 1.27588 | AO44: 1.6279
A45: -0.37 | B45: 0.93233 | C45: 0.96300 | D45: 0.03067 | E45: 0.03067 | F45: 0.0009 | H45: -0.37 | I45: 0.93233 | J45: 0.87647 | K45: -0.05586 | L45: 0.05586 | M45: 0.0031 | O45: -0.37 | P45: 0.93233 | Q45: 0.71029 | R45: -0.22204 | S45: 0.22204 | T45: 0.0493 | V45: -0.37 | W45: 0.93233 | X45: 0.79471 | Y45: -0.13762 | Z45: 0.13762 | AA45: 0.0189 | AC45: -0.37 | AD45: 0.93233 | AE45: -0.33713 | AF45: -1.26946 | AG45: 1.26946 | AH45: 1.6115 | AJ45: -0.37 | AK45: 0.93233 | AL45: -0.33687 | AM45: -1.26919 | AN45: 1.26919 | AO45: 1.6109
A46: -0.355 | B46: 0.93765 | C46: 0.96450 | D46: 0.02685 | E46: 0.02685 | F46: 0.0007 | H46: -0.355 | I46: 0.93765 | J46: 0.87891 | K46: -0.05873 | L46: 0.05873 | M46: 0.0034 | O46: -0.355 | P46: 0.93765 | Q46: 0.71764 | R46: -0.22000 | S46: 0.22000 | T46: 0.0484 | V46: -0.355 | W46: 0.93765 | X46: 0.80847 | Y46: -0.12917 | Z46: 0.12917 | AA46: 0.0167 | AC46: -0.355 | AD46: 0.93765 | AE46: -0.32476 | AF46: -1.26240 | AG46: 1.26240 | AH46: 1.5937 | AJ46: -0.355 | AK46: 0.93765 | AL46: -0.32455 | AM46: -1.26219 | AN46: 1.26219 | AO46: 1.5931
A47: -0.34 | B47: 0.94275 | C47: 0.96600 | D47: 0.02325 | E47: 0.02325 | F47: 0.0005 | H47: -0.34 | I47: 0.94275 | J47: 0.88123 | K47: -0.06152 | L47: 0.06152 | M47: 0.0038 | O47: -0.34 | P47: 0.94275 | Q47: 0.72467 | R47: -0.21809 | S47: 0.21809 | T47: 0.0476 | V47: -0.34 | W47: 0.94275 | X47: 0.82166 | Y47: -0.12109 | Z47: 0.12109 | AA47: 0.0147 | AC47: -0.34 | AD47: 0.94275 | AE47: -0.31228 | AF47: -1.25504 | AG47: 1.25504 | AH47: 1.5751 | AJ47: -0.34 | AK47: 0.94275 | AL47: -0.31212 | AM47: -1.25487 | AN47: 1.25487 | AO47: 1.5747
A48: -0.325 | B48: 0.94765 | C48: 0.96750 | D48: 0.01985 | E48: 0.01985 | F48: 0.0004 | H48: -0.325 | I48: 0.94765 | J48: 0.88343 | K48: -0.06423 | L48: 0.06423 | M48: 0.0041 | O48: -0.325 | P48: 0.94765 | Q48: 0.73136 | R48: -0.21629 | S48: 0.21629 | T48: 0.0468 | V48: -0.325 | W48: 0.94765 | X48: 0.83429 | Y48: -0.11336 | Z48: 0.11336 | AA48: 0.0129 | AC48: -0.325 | AD48: 0.94765 | AE48: -0.29970 | AF48: -1.24735 | AG48: 1.24735 | AH48: 1.5559 | AJ48: -0.325 | AK48: 0.94765 | AL48: -0.29958 | AM48: -1.24723 | AN48: 1.24723 | AO48: 1.5556
A49: -0.31 | B49: 0.95233 | C49: 0.96900 | D49: 0.01667 | E49: 0.01667 | F49: 0.0003 | H49: -0.31 | I49: 0.95233 | J49: 0.88549 | K49: -0.06684 | L49: 0.06684 | M49: 0.0045 | O49: -0.31 | P49: 0.95233 | Q49: 0.73773 | R49: -0.21460 | S49: 0.21460 | T49: 0.0461 | V49: -0.31 | W49: 0.95233 | X49: 0.84636 | Y49: -0.10598 | Z49: 0.10598 | AA49: 0.0112 | AC49: -0.31 | AD49: 0.95233 | AE49: -0.28702 | AF49: -1.23936 | AG49: 1.23936 | AH49: 1.5360 | AJ49: -0.31 | AK49: 0.95233 | AL49: -0.28693 | AM49: -1.23926 | AN49: 1.23926 | AO49: 1.5358
A50: -0.295 | B50: 0.95680 | C50: 0.97050 | D50: 0.01370 | E50: 0.01370 | F50: 0.0002 | H50: -0.295 | I50: 0.95680 | J50: 0.88743 | K50: -0.06937 | L50: 0.06937 | M50: 0.0048 | O50: -0.295 | P50: 0.95680 | Q50: 0.74377 | R50: -0.21303 | S50: 0.21303 | T50: 0.0454 | V50: -0.295 | W50: 0.95680 | X50: 0.85787 | Y50: -0.09893 | Z50: 0.09893 | AA50: 0.0098 | AC50: -0.295 | AD50: 0.95680 | AE50: -0.27424 | AF50: -1.23104 | AG50: 1.23104 | AH50: 1.5155 | AJ50: -0.295 | AK50: 0.95680 | AL50: -0.27417 | AM50: -1.23097 | AN50: 1.23097 | AO50: 1.5153
A51: -0.28 | B51: 0.96106 | C51: 0.97200 | D51: 0.01094 | E51: 0.01094 | F51: 0.0001 | H51: -0.28 | I51: 0.96106 | J51: 0.88925 | K51: -0.07181 | L51: 0.07181 | M51: 0.0052 | O51: -0.28 | P51: 0.96106 | Q51: 0.74949 | R51: -0.21157 | S51: 0.21157 | T51: 0.0448 | V51: -0.28 | W51: 0.96106 | X51: 0.86884 | Y51: -0.09222 | Z51: 0.09222 | AA51: 0.0085 | AC51: -0.28 | AD51: 0.96106 | AE51: -0.26134 | AF51: -1.22240 | AG51: 1.22240 | AH51: 1.4943 | AJ51: -0.28 | AK51: 0.96106 | AL51: -0.26129 | AM51: -1.22235 | AN51: 1.22235 | AO51: 1.4941
A52: -0.265 | B52: 0.96509 | C52: 0.97350 | D52: 0.00841 | E52: 0.00841 | F52: 0.0001 | H52: -0.265 | I52: 0.96509 | J52: 0.89094 | K52: -0.07416 | L52: 0.07416 | M52: 0.0055 | O52: -0.265 | P52: 0.96509 | Q52: 0.75488 | R52: -0.21021 | S52: 0.21021 | T52: 0.0442 | V52: -0.265 | W52: 0.96509 | X52: 0.87926 | Y52: -0.08583 | Z52: 0.08583 | AA52: 0.0074 | AC52: -0.265 | AD52: 0.96509 | AE52: -0.24834 | AF52: -1.21343 | AG52: 1.21343 | AH52: 1.4724 | AJ52: -0.265 | AK52: 0.96509 | AL52: -0.24830 | AM52: -1.21339 | AN52: 1.21339 | AO52: 1.4723
A53: -0.25 | B53: 0.96891 | C53: 0.97500 | D53: 0.00609 | E53: 0.00609 | F53: 0.0000 | H53: -0.25 | I53: 0.96891 | J53: 0.89250 | K53: -0.07641 | L53: 0.07641 | M53: 0.0058 | O53: -0.25 | P53: 0.96891 | Q53: 0.75996 | R53: -0.20895 | S53: 0.20895 | T53: 0.0437 | V53: -0.25 | W53: 0.96891 | X53: 0.88915 | Y53: -0.07976 | Z53: 0.07976 | AA53: 0.0064 | AC53: -0.25 | AD53: 0.96891 | AE53: -0.23522 | AF53: -1.20413 | AG53: 1.20413 | AH53: 1.4499 | AJ53: -0.25 | AK53: 0.96891 | AL53: -0.23519 | AM53: -1.20411 | AN53: 1.20411 | AO53: 1.4499
A54: -0.235 | B54: 0.97251 | C54: 0.97650 | D54: 0.00399 | E54: 0.00399 | F54: 0.0000 | H54: -0.235 | I54: 0.97251 | J54: 0.89394 | K54: -0.07858 | L54: 0.07858 | M54: 0.0062 | O54: -0.235 | P54: 0.97251 | Q54: 0.76472 | R54: -0.20779 | S54: 0.20779 | T54: 0.0432 | V54: -0.235 | W54: 0.97251 | X54: 0.89851 | Y54: -0.07400 | Z54: 0.07400 | AA54: 0.0055 | AC54: -0.235 | AD54: 0.97251 | AE54: -0.22199 | AF54: -1.19450 | AG54: 1.19450 | AH54: 1.4268 | AJ54: -0.235 | AK54: 0.97251 | AL54: -0.22197 | AM54: -1.19449 | AN54: 1.19449 | AO54: 1.4268
A55: -0.22 | B55: 0.97590 | C55: 0.97800 | D55: 0.00210 | E55: 0.00210 | F55: 0.0000 | H55: -0.22 | I55: 0.97590 | J55: 0.89525 | K55: -0.08065 | L55: 0.08065 | M55: 0.0065 | O55: -0.22 | P55: 0.97590 | Q55: 0.76917 | R55: -0.20673 | S55: 0.20673 | T55: 0.0427 | V55: -0.22 | W55: 0.97590 | X55: 0.90735 | Y55: -0.06855 | Z55: 0.06855 | AA55: 0.0047 | AC55: -0.22 | AD55: 0.97590 | AE55: -0.20864 | AF55: -1.18454 | AG55: 1.18454 | AH55: 1.4031 | AJ55: -0.22 | AK55: 0.97590 | AL55: -0.20863 | AM55: -1.18453 | AN55: 1.18453 | AO55: 1.4031
A56: -0.205 | B56: 0.97906 | C56: 0.97950 | D56: 0.00044 | E56: 0.00044 | F56: 0.0000 | H56: -0.205 | I56: 0.97906 | J56: 0.89643 | K56: -0.08263 | L56: 0.08263 | M56: 0.0068 | O56: -0.205 | P56: 0.97906 | Q56: 0.77331 | R56: -0.20575 | S56: 0.20575 | T56: 0.0423 | V56: -0.205 | W56: 0.97906 | X56: 0.91566 | Y56: -0.06340 | Z56: 0.06340 | AA56: 0.0040 | AC56: -0.205 | AD56: 0.97906 | AE56: -0.19519 | AF56: -1.17425 | AG56: 1.17425 | AH56: 1.3789 | AJ56: -0.205 | AK56: 0.97906 | AL56: -0.19518 | AM56: -1.17424 | AN56: 1.17424 | AO56: 1.3788
A57: -0.19 | B57: 0.98200 | C57: 0.98100 | D57: -0.00100 | E57: 0.00100 | F57: 0.0000 | H57: -0.19 | I57: 0.98200 | J57: 0.89749 | K57: -0.08451 | L57: 0.08451 | M57: 0.0071 | O57: -0.19 | P57: 0.98200 | Q57: 0.77714 | R57: -0.20487 | S57: 0.20487 | T57: 0.0420 | V57: -0.19 | W57: 0.98200 | X57: 0.92347 | Y57: -0.05854 | Z57: 0.05854 | AA57: 0.0034 | AC57: -0.19 | AD57: 0.98200 | AE57: -0.18161 | AF57: -1.16362 | AG57: 1.16362 | AH57: 1.3540 | AJ57: -0.19 | AK57: 0.98200 | AL57: -0.18161 | AM57: -1.16361 | AN57: 1.16361 | AO57: 1.3540
A58: -0.175 | B58: 0.98473 | C58: 0.98250 | D58: -0.00223 | E58: 0.00223 | F58: 0.0000 | H58: -0.175 | I58: 0.98473 | J58: 0.89843 | K58: -0.08630 | L58: 0.08630 | M58: 0.0074 | O58: -0.175 | P58: 0.98473 | Q58: 0.78066 | R58: -0.20406 | S58: 0.20406 | T58: 0.0416 | V58: -0.175 | W58: 0.98473 | X58: 0.93076 | Y58: -0.05397 | Z58: 0.05397 | AA58: 0.0029 | AC58: -0.175 | AD58: 0.98473 | AE58: -0.16792 | AF58: -1.15265 | AG58: 1.15265 | AH58: 1.3286 | AJ58: -0.175 | AK58: 0.98473 | AL58: -0.16792 | AM58: -1.15265 | AN58: 1.15265 | AO58: 1.3286
A59: -0.16 | B59: 0.98723 | C59: 0.98400 | D59: -0.00323 | E59: 0.00323 | F59: 0.0000 | H59: -0.16 | I59: 0.98723 | J59: 0.89923 | K59: -0.08800 | L59: 0.08800 | M59: 0.0077 | O59: -0.16 | P59: 0.98723 | Q59: 0.78388 | R59: -0.20335 | S59: 0.20335 | T59: 0.0413 | V59: -0.16 | W59: 0.98723 | X59: 0.93755 | Y59: -0.04967 | Z59: 0.04967 | AA59: 0.0025 | AC59: -0.16 | AD59: 0.98723 | AE59: -0.15412 | AF59: -1.14135 | AG59: 1.14135 | AH59: 1.3027 | AJ59: -0.16 | AK59: 0.98723 | AL59: -0.15412 | AM59: -1.14134 | AN59: 1.14134 | AO59: 1.3027
A60: -0.145 | B60: 0.98951 | C60: 0.98550 | D60: -0.00401 | E60: 0.00401 | F60: 0.0000 | H60: -0.145 | I60: 0.98951 | J60: 0.89991 | K60: -0.08959 | L60: 0.08959 | M60: 0.0080 | O60: -0.145 | P60: 0.98951 | Q60: 0.78680 | R60: -0.20270 | S60: 0.20270 | T60: 0.0411 | V60: -0.145 | W60: 0.98951 | X60: 0.94385 | Y60: -0.04566 | Z60: 0.04566 | AA60: 0.0021 | AC60: -0.145 | AD60: 0.98951 | AE60: -0.14020 | AF60: -1.12971 | AG60: 1.12971 | AH60: 1.2762 | AJ60: -0.145 | AK60: 0.98951 | AL60: -0.14020 | AM60: -1.12970 | AN60: 1.12970 | AO60: 1.2762
A61: -0.13 | B61: 0.99156 | C61: 0.98700 | D61: -0.00456 | E61: 0.00456 | F61: 0.0000 | H61: -0.13 | I61: 0.99156 | J61: 0.90047 | K61: -0.09109 | L61: 0.09109 | M61: 0.0083 | O61: -0.13 | P61: 0.99156 | Q61: 0.78942 | R61: -0.20214 | S61: 0.20214 | T61: 0.0409 | V61: -0.13 | W61: 0.99156 | X61: 0.94965 | Y61: -0.04191 | Z61: 0.04191 | AA61: 0.0018 | AC61: -0.13 | AD61: 0.99156 | AE61: -0.12617 | AF61: -1.11773 | AG61: 1.11773 | AH61: 1.2493 | AJ61: -0.13 | AK61: 0.99156 | AL61: -0.12617 | AM61: -1.11773 | AN61: 1.11773 | AO61: 1.2493
A62: -0.115 | B62: 0.99339 | C62: 0.98850 | D62: -0.00489 | E62: 0.00489 | F62: 0.0000 | H62: -0.115 | I62: 0.99339 | J62: 0.90090 | K62: -0.09250 | L62: 0.09250 | M62: 0.0086 | O62: -0.115 | P62: 0.99339 | Q62: 0.79175 | R62: -0.20165 | S62: 0.20165 | T62: 0.0407 | V62: -0.115 | W62: 0.99339 | X62: 0.95497 | Y62: -0.03843 | Z62: 0.03843 | AA62: 0.0015 | AC62: -0.115 | AD62: 0.99339 | AE62: -0.11202 | AF62: -1.10542 | AG62: 1.10542 | AH62: 1.2219 | AJ62: -0.115 | AK62: 0.99339 | AL62: -0.11202 | AM62: -1.10542 | AN62: 1.10542 | AO62: 1.2219
A63: -0.1 | B63: 0.99500 | C63: 0.99000 | D63: -0.00500 | E63: 0.00500 | F63: 0.0000 | H63: -0.1 | I63: 0.99500 | J63: 0.90120 | K63: -0.09380 | L63: 0.09380 | M63: 0.0088 | O63: -0.1 | P63: 0.99500 | Q63: 0.79378 | R63: -0.20123 | S63: 0.20123 | T63: 0.0405 | V63: -0.1 | W63: 0.99500 | X63: 0.95980 | Y63: -0.03521 | Z63: 0.03521 | AA63: 0.0012 | AC63: -0.1 | AD63: 0.99500 | AE63: -0.09777 | AF63: -1.09277 | AG63: 1.09277 | AH63: 1.1941 | AJ63: -0.1 | AK63: 0.99500 | AL63: -0.09777 | AM63: -1.09277 | AN63: 1.09277 | AO63: 1.1941
A64: -0.085 | B64: 0.99639 | C64: 0.99150 | D64: -0.00489 | E64: 0.00489 | F64: 0.0000 | H64: -0.085 | I64: 0.99639 | J64: 0.90138 | K64: -0.09501 | L64: 0.09501 | M64: 0.0090 | O64: -0.085 | P64: 0.99639 | Q64: 0.79552 | R64: -0.20087 | S64: 0.20087 | T64: 0.0403 | V64: -0.085 | W64: 0.99639 | X64: 0.96415 | Y64: -0.03224 | Z64: 0.03224 | AA64: 0.0010 | AC64: -0.085 | AD64: 0.99639 | AE64: -0.08340 | AF64: -1.07979 | AG64: 1.07979 | AH64: 1.1659 | AJ64: -0.085 | AK64: 0.99639 | AL64: -0.08340 | AM64: -1.07979 | AN64: 1.07979 | AO64: 1.1659
A65: -0.07 | B65: 0.99755 | C65: 0.99300 | D65: -0.00455 | E65: 0.00455 | F65: 0.0000 | H65: -0.07 | I65: 0.99755 | J65: 0.90143 | K65: -0.09612 | L65: 0.09612 | M65: 0.0092 | O65: -0.07 | P65: 0.99755 | Q65: 0.79697 | R65: -0.20058 | S65: 0.20058 | T65: 0.0402 | V65: -0.07 | W65: 0.99755 | X65: 0.96803 | Y65: -0.02952 | Z65: 0.02952 | AA65: 0.0009 | AC65: -0.07 | AD65: 0.99755 | AE65: -0.06892 | AF65: -1.06647 | AG65: 1.06647 | AH65: 1.1374 | AJ65: -0.07 | AK65: 0.99755 | AL65: -0.06892 | AM65: -1.06647 | AN65: 1.06647 | AO65: 1.1374
A66: -0.055 | B66: 0.99849 | C66: 0.99450 | D66: -0.00399 | E66: 0.00399 | F66: 0.0000 | H66: -0.055 | I66: 0.99849 | J66: 0.90135 | K66: -0.09713 | L66: 0.09713 | M66: 0.0094 | O66: -0.055 | P66: 0.99849 | Q66: 0.79813 | R66: -0.20035 | S66: 0.20035 | T66: 0.0401 | V66: -0.055 | W66: 0.99849 | X66: 0.97144 | Y66: -0.02705 | Z66: 0.02705 | AA66: 0.0007 | AC66: -0.055 | AD66: 0.99849 | AE66: -0.05434 | AF66: -1.05283 | AG66: 1.05283 | AH66: 1.1084 | AJ66: -0.055 | AK66: 0.99849 | AL66: -0.05434 | AM66: -1.05283 | AN66: 1.05283 | AO66: 1.1084
A67: -0.04 | B67: 0.99920 | C67: =aa00+bb00*A67 -> 0.99600 | D67: -0.00320 | E67: 0.00320 | F67: 0.0000 | H67: -0.04 | I67: 0.99920 | J67: =a0+b0*A67+c0*A67^2 -> 0.90115 | K67: -0.09805 | L67: 0.09805 | M67: 0.0096 | O67: -0.04 | P67: 0.99920 | Q67: =a00+b00*O67+c00*O67^2+d00*A67^3 -> 0.79902 | R67: -0.20018 | S67: 0.20018 | T67: 0.0401 | V67: -0.04 | W67: 0.99920 | X67: =a000+b000*V67+c000*V67^2+d000*O67^3+e000*O67^4 -> 0.97439 | Y67: -0.02481 | Z67: 0.02481 | AA67: 0.0006 | AC67: -0.04 | AD67: 0.99920 | AE67: =a0000+b0000*AC67+c0000*AC67^2+d0000*AC67^3+e0000*AC67^4+f0000*AC67^5 -> -0.03965 | AF67: -1.03885 | AG67: 1.03885 | AH67: 1.0792 | AJ67: -0.04 | AK67: 0.99920 | AL67: =a0000+b0000*AJ67+c0000*AJ67^2+d0000*AJ67^3+e0000*AJ67^4+f0000*AJ67^5+g00000*AJ67^6 -> -0.03965 | AM67: -1.03885 | AN67: 1.03885 | AO67: 1.0792
A68: =A67+(b-a)/200 -> -0.025 | B68: =COS(A68) -> 0.99969 | C68: 0.99750 | D68: =C68-B68 -> -0.00219 | E68: =ABS(D68) -> 0.00219 | F68: =D68^2 -> 0.0000 | H68: =H67+(b-a)/200 -> -0.025 | I68: =COS(H68) -> 0.99969 | J68: 0.90083 | K68: =J68-I68 -> -0.09886 | L68: =ABS(K68) -> 0.09886 | M68: =K68^2 -> 0.0098 | O68: =O67+(bb-aa)/200 -> -0.025 | P68: =COS(O68) -> 0.99969 | Q68: 0.79962 | R68: =Q68-P68 -> -0.20007 | S68: =ABS(R68) -> 0.20007 | T68: =R68^2 -> 0.0400 | V68: =V67+(bbb-aaa)/200 -> -0.025 | W68: =COS(V68) -> 0.99969 | X68: 0.97687 | Y68: =X68-W68 -> -0.02282 | Z68: =ABS(Y68) -> 0.02282 | AA68: =Y68^2 -> 0.0005 | AC68: =AC67+(bbbb-aaaa)/200 -> -0.025 | AD68: =COS(AC68) -> 0.99969 | AE68: -0.02487 | AF68: =AE68-AD68 -> -1.02455 | AG68: =ABS(AF68) -> 1.02455 | AH68: =AF68^2 -> 1.0497 | AJ68: =AJ67+(bbbbb-aaaaa)/200 -> -0.025 | AK68: =COS(AJ68) -> 0.99969 | AL68: -0.02487 | AM68: =AL68-AK68 -> -1.02455 | AN68: =ABS(AM68) -> 1.02455 | AO68: =AM68^2 -> 1.0497
A69: -0.01 | B69: 0.99995 | C69: 0.99900 | D69: -0.00095 | E69: 0.00095 | F69: 0.0000 | H69: -0.01 | I69: 0.99995 | J69: 0.90037 | K69: -0.09958 | L69: 0.09958 | M69: 0.0099 | O69: -0.01 | P69: 0.99995 | Q69: 0.79994 | R69: -0.20001 | S69: 0.20001 | T69: 0.0400 | V69: -0.01 | W69: 0.99995 | X69: 0.97890 | Y69: -0.02105 | Z69: 0.02105 | AA69: 0.0004 | AC69: -0.01 | AD69: 0.99995 | AE69: -0.00998 | AF69: -1.00993 | AG69: 1.00993 | AH69: 1.0200 | AJ69: -0.01 | AK69: 0.99995 | AL69: -0.00998 | AM69: -1.00993 | AN69: 1.00993 | AO69: 1.0200
A70: 0.005 | B70: 0.99999 | C70: 1.00050 | D70: 0.00051 | E70: 0.00051 | F70: 0.0000 | H70: 0.005 | I70: 0.99999 | J70: 0.89979 | K70: -0.10019 | L70: 0.10019 | M70: 0.0100 | O70: 0.005 | P70: 0.99999 | Q70: 0.79998 | R70: -0.20000 | S70: 0.20000 | T70: 0.0400 | V70: 0.005 | W70: 0.99999 | X70: 0.98048 | Y70: -0.01951 | Z70: 0.01951 | AA70: 0.0004 | AC70: 0.005 | AD70: 0.99999 | AE70: 0.00501 | AF70: -0.99498 | AG70: 0.99498 | AH70: 0.9900 | AJ70: 0.005 | AK70: 0.99999 | AL70: 0.00501 | AM70: -0.99498 | AN70: 0.99498 | AO70: 0.9900
A71: 0.02 | B71: 0.99980 | C71: 1.00200 | D71: 0.00220 | E71: 0.00220 | F71: 0.0000 | H71: 0.02 | I71: 0.99980 | J71: 0.89909 | K71: -0.10071 | L71: 0.10071 | M71: 0.0101 | O71: 0.02 | P71: 0.99980 | Q71: 0.79976 | R71: -0.20004 | S71: 0.20004 | T71: 0.0400 | V71: 0.02 | W71: 0.99980 | X71: 0.98160 | Y71: -0.01820 | Z71: 0.01820 | AA71: 0.0003 | AC71: 0.02 | AD71: 0.99980 | AE71: 0.02008 | AF71: -0.97972 | AG71: 0.97972 | AH71: 0.9598 | AJ71: 0.02 | AK71: 0.99980 | AL71: 0.02008 | AM71: -0.97972 | AN71: 0.97972 | AO71: 0.9598
A72: 0.035 | B72: 0.99939 | C72: 1.00350 | D72: 0.00411 | E72: 0.00411 | F72: 0.0000 | H72: 0.035 | I72: 0.99939 | J72: 0.89826 | K72: -0.10113 | L72: 0.10113 | M72: 0.0102 | O72: 0.035 | P72: 0.99939 | Q72: 0.79926 | R72: -0.20013 | S72: 0.20013 | T72: 0.0401 | V72: 0.035 | W72: 0.99939 | X72: 0.98228 | Y72: -0.01710 | Z72: 0.01710 | AA72: 0.0003 | AC72: 0.035 | AD72: 0.99939 | AE72: 0.03525 | AF72: -0.96414 | AG72: 0.96414 | AH72: 0.9296 | AJ72: 0.035 | AK72: 0.99939 | AL72: 0.03525 | AM72: -0.96414 | AN72: 0.96414 | AO72: 0.9296
A73: 0.05 | B73: 0.99875 | C73: 1.00500 | D73: 0.00625 | E73: 0.00625 | F73: 0.0000 | H73: 0.05 | I73: 0.99875 | J73: 0.89730 | K73: -0.10145 | L73: 0.10145 | M73: 0.0103 | O73: 0.05 | P73: 0.99875 | Q73: 0.79849 | R73: -0.20026 | S73: 0.20026 | T73: 0.0401 | V73: 0.05 | W73: 0.99875 | X73: 0.98252 | Y73: -0.01623 | Z73: 0.01623 | AA73: 0.0003 | AC73: 0.05 | AD73: 0.99875 | AE73: 0.05050 | AF73: -0.94825 | AG73: 0.94825 | AH73: 0.8992 | AJ73: 0.05 | AK73: 0.99875 | AL73: 0.05050 | AM73: -0.94825 | AN73: 0.94825 | AO73: 0.8992
A74: 0.065 | B74: 0.99789 | C74: 1.00650 | D74: 0.00861 | E74: 0.00861 | F74: 0.0001 | H74: 0.065 | I74: 0.99789 | J74: 0.89622 | K74: -0.10167 | L74: 0.10167 | M74: 0.0103 | O74: 0.065 | P74: 0.99789 | Q74: 0.79746 | R74: -0.20043 | S74: 0.20043 | T74: 0.0402 | V74: 0.065 | W74: 0.99789 | X74: 0.98233 | Y74: -0.01556 | Z74: 0.01556 | AA74: 0.0002 | AC74: 0.065 | AD74: 0.99789 | AE74: 0.06584 | AF74: -0.93205 | AG74: 0.93205 | AH74: 0.8687 | AJ74: 0.065 | AK74: 0.99789 | AL74: 0.06584 | AM74: -0.93205 | AN74: 0.93205 | AO74: 0.8687
A75: 0.08 | B75: 0.99680 | C75: 1.00800 | D75: 0.01120 | E75: 0.01120 | F75: 0.0001 | H75: 0.08 | I75: 0.99680 | J75: 0.89501 | K75: -0.10179 | L75: 0.10179 | M75: 0.0104 | O75: 0.08 | P75: 0.99680 | Q75: 0.79616 | R75: -0.20064 | S75: 0.20064 | T75: 0.0403 | V75: 0.08 | W75: 0.99680 | X75: 0.98169 | Y75: -0.01511 | Z75: 0.01511 | AA75: 0.0002 | AC75: 0.08 | AD75: 0.99680 | AE75: 0.08126 | AF75: -0.91554 | AG75: 0.91554 | AH75: 0.8382 | AJ75: 0.08 | AK75: 0.99680 | AL75: 0.08126 | AM75: -0.91554 | AN75: 0.91554 | AO75: 0.8382
A76: 0.095 | B76: 0.99549 | C76: 1.00950 | D76: 0.01401 | E76: 0.01401 | F76: 0.0002 | H76: 0.095 | I76: 0.99549 | J76: 0.89367 | K76: -0.10182 | L76: 0.10182 | M76: 0.0104 | O76: 0.095 | P76: 0.99549 | Q76: 0.79460 | R76: -0.20089 | S76: 0.20089 | T76: 0.0404 | V76: 0.095 | W76: 0.99549 | X76: 0.98063 | Y76: -0.01486 | Z76: 0.01486 | AA76: 0.0002 | AC76: 0.095 | AD76: 0.99549 | AE76: 0.09675 | AF76: -0.89874 | AG76: 0.89874 | AH76: 0.8077 | AJ76: 0.095 | AK76: 0.99549 | AL76: 0.09675 | AM76: -0.89874 | AN76: 0.89874 | AO76: 0.8077
A77: 0.11 | B77: 0.99396 | C77: 1.01100 | D77: 0.01704 | E77: 0.01704 | F77: 0.0003 | H77: 0.11 | I77: 0.99396 | J77: 0.89221 | K77: -0.10174 | L77: 0.10174 | M77: 0.0104 | O77: 0.11 | P77: 0.99396 | Q77: 0.79278 | R77: -0.20117 | S77: 0.20117 | T77: 0.0405 | V77: 0.11 | W77: 0.99396 | X77: 0.97914 | Y77: -0.01481 | Z77: 0.01481 | AA77: 0.0002 | AC77: 0.11 | AD77: 0.99396 | AE77: 0.11231 | AF77: -0.88164 | AG77: 0.88164 | AH77: 0.7773 | AJ77: 0.11 | AK77: 0.99396 | AL77: 0.11231 | AM77: -0.88164 | AN77: 0.88164 | AO77: 0.7773
A78: 0.125 | B78: 0.99220 | C78: 1.01250 | D78: 0.02030 | E78: 0.02030 | F78: 0.0004 | H78: 0.125 | I78: 0.99220 | J78: 0.89063 | K78: -0.10157 | L78: 0.10157 | M78: 0.0103 | O78: 0.125 | P78: 0.99220 | Q78: 0.79071 | R78: -0.20149 | S78: 0.20149 | T78: 0.0406 | V78: 0.125 | W78: 0.99220 | X78: 0.97723 | Y78: -0.01497 | Z78: 0.01497 | AA78: 0.0002 | AC78: 0.125 | AD78: 0.99220 | AE78: 0.12794 | AF78: -0.86425 | AG78: 0.86425 | AH78: 0.7469 | AJ78: 0.125 | AK78: 0.99220 | AL78: 0.12794 | AM78: -0.86425 | AN78: 0.86425 | AO78: 0.7469
A79: 0.14 | B79: 0.99022 | C79: 1.01400 | D79: 0.02378 | E79: 0.02378 | F79: 0.0006 | H79: 0.14 | I79: 0.99022 | J79: 0.88891 | K79: -0.10130 | L79: 0.10130 | M79: 0.0103 | O79: 0.14 | P79: 0.99022 | Q79: 0.78838 | R79: -0.20184 | S79: 0.20184 | T79: 0.0407 | V79: 0.14 | W79: 0.99022 | X79: 0.97489 | Y79: -0.01532 | Z79: 0.01532 | AA79: 0.0002 | AC79: 0.14 | AD79: 0.99022 | AE79: 0.14363 | AF79: -0.84658 | AG79: 0.84658 | AH79: 0.7167 | AJ79: 0.14 | AK79: 0.99022 | AL79: 0.14363 | AM79: -0.84658 | AN79: 0.84658 | AO79: 0.7167
A80: 0.155 | B80: 0.98801 | C80: 1.01550 | D80: 0.02749 | E80: 0.02749 | F80: 0.0008 | H80: 0.155 | I80: 0.98801 | J80: 0.88707 | K80: -0.10094 | L80: 0.10094 | M80: 0.0102 | O80: 0.155 | P80: 0.98801 | Q80: 0.78580 | R80: -0.20221 | S80: 0.20221 | T80: 0.0409 | V80: 0.155 | W80: 0.98801 | X80: 0.97214 | Y80: -0.01587 | Z80: 0.01587 | AA80: 0.0003 | AC80: 0.155 | AD80: 0.98801 | AE80: 0.15938 | AF80: -0.82863 | AG80: 0.82863 | AH80: 0.6866 | AJ80: 0.155 | AK80: 0.98801 | AL80: 0.15938 | AM80: -0.82863 | AN80: 0.82863 | AO80: 0.6866
A81: 0.17 | B81: 0.98558 | C81: 1.01700 | D81: 0.03142 | E81: 0.03142 | F81: 0.0010 | H81: 0.17 | I81: 0.98558 | J81: 0.88511 | K81: -0.10048 | L81: 0.10048 | M81: 0.0101 | O81: 0.17 | P81: 0.98558 | Q81: 0.78297 | R81: -0.20261 | S81: 0.20261 | T81: 0.0411 | V81: 0.17 | W81: 0.98558 | X81: 0.96897 | Y81: -0.01661 | Z81: 0.01661 | AA81: 0.0003 | AC81: 0.17 | AD81: 0.98558 | AE81: 0.17518 | AF81: -0.81040 | AG81: 0.81040 | AH81: 0.6568 | AJ81: 0.17 | AK81: 0.98558 | AL81: 0.17519 | AM81: -0.81040 | AN81: 0.81040 | AO81: 0.6567
A82: 0.185 | B82: 0.98294 | C82: 1.01850 | D82: 0.03556 | E82: 0.03556 | F82: 0.0013 | H82: 0.185 | I82: 0.98294 | J82: 0.88302 | K82: -0.09992 | L82: 0.09992 | M82: 0.0100 | O82: 0.185 | P82: 0.98294 | Q82: 0.77990 | R82: -0.20304 | S82: 0.20304 | T82: 0.0412 | V82: 0.185 | W82: 0.98294 | X82: 0.96539 | Y82: -0.01754 | Z82: 0.01754 | AA82: 0.0003 | AC82: 0.185 | AD82: 0.98294 | AE82: 0.19103 | AF82: -0.79190 | AG82: 0.79190 | AH82: 0.6271 | AJ82: 0.185 | AK82: 0.98294 | AL82: 0.19104 | AM82: -0.79190 | AN82: 0.79190 | AO82: 0.6271
A83: 0.2 | B83: 0.98007 | C83: 1.02000 | D83: 0.03993 | E83: 0.03993 | F83: 0.0016 | H83: 0.2 | I83: 0.98007 | J83: 0.88080 | K83: -0.09927 | L83: 0.09927 | M83: 0.0099 | O83: 0.2 | P83: 0.98007 | Q83: 0.77658 | R83: -0.20349 | S83: 0.20349 | T83: 0.0414 | V83: 0.2 | W83: 0.98007 | X83: 0.96140 | Y83: -0.01867 | Z83: 0.01867 | AA83: 0.0003 | AC83: 0.2 | AD83: 0.98007 | AE83: 0.20692 | AF83: -0.77315 | AG83: 0.77315 | AH83: 0.5978 | AJ83: 0.2 | AK83: 0.98007 | AL83: 0.20693 | AM83: -0.77314 | AN83: 0.77314 | AO83: 0.5977
A84: 0.215 | B84: 0.97698 | C84: 1.02150 | D84: 0.04452 | E84: 0.04452 | F84: 0.0020 | H84: 0.215 | I84: 0.97698 | J84: 0.87846 | K84: -0.09852 | L84: 0.09852 | M84: 0.0097 | O84: 0.215 | P84: 0.97698 | Q84: 0.77302 | R84: -0.20396 | S84: 0.20396 | T84: 0.0416 | V84: 0.215 | W84: 0.97698 | X84: 0.95700 | Y84: -0.01998 | Z84: 0.01998 | AA84: 0.0004 | AC84: 0.215 | AD84: 0.97698 | AE84: 0.22285 | AF84: -0.75413 | AG84: 0.75413 | AH84: 0.5687 | AJ84: 0.215 | AK84: 0.97698 | AL84: 0.22286 | AM84: -0.75412 | AN84: 0.75412 | AO84: 0.5687
A85: 0.23 | B85: 0.97367 | C85: 1.02300 | D85: 0.04933 | E85: 0.04933 | F85: 0.0024 | H85: 0.23 | I85: 0.97367 | J85: 0.87599 | K85: -0.09768 | L85: 0.09768 | M85: 0.0095 | O85: 0.23 | P85: 0.97367 | Q85: 0.76922 | R85: -0.20444 | S85: 0.20444 | T85: 0.0418 | V85: 0.23 | W85: 0.97367 | X85: 0.95220 | Y85: -0.02147 | Z85: 0.02147 | AA85: 0.0005 | AC85: 0.23 | AD85: 0.97367 | AE85: 0.23881 | AF85: -0.73486 | AG85: 0.73486 | AH85: 0.5400 | AJ85: 0.23 | AK85: 0.97367 | AL85: 0.23882 | AM85: -0.73485 | AN85: 0.73485 | AO85: 0.5400
A86: 0.245 | B86: 0.97014 | C86: 1.02450 | D86: 0.05436 | E86: 0.05436 | F86: 0.0030 | H86: 0.245 | I86: 0.97014 | J86: 0.87339 | K86: -0.09674 | L86: 0.09674 | M86: 0.0094 | O86: 0.245 | P86: 0.97014 | Q86: 0.76519 | R86: -0.20495 | S86: 0.20495 | T86: 0.0420 | V86: 0.245 | W86: 0.97014 | X86: 0.94699 | Y86: -0.02315 | Z86: 0.02315 | AA86: 0.0005 | AC86: 0.245 | AD86: 0.97014 | AE86: 0.25479 | AF86: -0.71535 | AG86: 0.71535 | AH86: 0.5117 | AJ86: 0.245 | AK86: 0.97014 | AL86: 0.25481 | AM86: -0.71533 | AN86: 0.71533 | AO86: 0.5117
A87: 0.26 | B87: 0.96639 | C87: 1.02600 | D87: 0.05961 | E87: 0.05961 | F87: 0.0036 | H87: 0.26 | I87: 0.96639 | J87: 0.87067 | K87: -0.09572 | L87: 0.09572 | M87: 0.0092 | O87: 0.26 | P87: 0.96639 | Q87: 0.76092 | R87: -0.20547 | S87: 0.20547 | T87: 0.0422 | V87: 0.26 | W87: 0.96639 | X87: 0.94138 | Y87: -0.02501 | Z87: 0.02501 | AA87: 0.0006 | AC87: 0.26 | AD87: 0.96639 | AE87: 0.27079 | AF87: -0.69560 | AG87: 0.69560 | AH87: 0.4839 | AJ87: 0.26 | AK87: 0.96639 | AL87: 0.27082 | AM87: -0.69557 | AN87: 0.69557 | AO87: 0.4838
A88: 0.275 | B88: 0.96243 | C88: 1.02750 | D88: 0.06507 | E88: 0.06507 | F88: 0.0042 | H88: 0.275 | I88: 0.96243 | J88: 0.86783 | K88: -0.09460 | L88: 0.09460 | M88: 0.0089 | O88: 0.275 | P88: 0.96243 | Q88: 0.75642 | R88: -0.20601 | S88: 0.20601 | T88: 0.0424 | V88: 0.275 | W88: 0.96243 | X88: 0.93538 | Y88: -0.02705 | Z88: 0.02705 | AA88: 0.0007 | AC88: 0.275 | AD88: 0.96243 | AE88: 0.28681 | AF88: -0.67562 | AG88: 0.67562 | AH88: 0.4565 | AJ88: 0.275 | AK88: 0.96243 | AL88: 0.28685 | AM88: -0.67557 | AN88: 0.67557 | AO88: 0.4564
A89: 0.29 | B89: 0.95824 | C89: 1.02900 | D89: 0.07076 | E89: 0.07076 | F89: 0.0050 | H89: 0.29 | I89: 0.95824 | J89: 0.86485 | K89: -0.09339 | L89: 0.09339 | M89: 0.0087 | O89: 0.29 | P89: 0.95824 | Q89: 0.75169 | R89: -0.20656 | S89: 0.20656 | T89: 0.0427 | V89: 0.29 | W89: 0.95824 | X89: 0.92898 | Y89: -0.02927 | Z89: 0.02927 | AA89: 0.0009 | AC89: 0.29 | AD89: 0.95824 | AE89: 0.30283 | AF89: -0.65541 | AG89: 0.65541 | AH89: 0.4296 | AJ89: 0.29 | AK89: 0.95824 | AL89: 0.30289 | AM89: -0.65535 | AN89: 0.65535 | AO89: 0.4295
A90: 0.305 | B90: 0.95385 | C90: 1.03050 | D90: 0.07665 | E90: 0.07665 | F90: 0.0059 | H90: 0.305 | I90: 0.95385 | J90: 0.86175 | K90: -0.09209 | L90: 0.09209 | M90: 0.0085 | O90: 0.305 | P90: 0.95385 | Q90: 0.74673 | R90: -0.20712 | S90: 0.20712 | T90: 0.0429 | V90: 0.305 | W90: 0.95385 | X90: 0.92218 | Y90: -0.03167 | Z90: 0.03167 | AA90: 0.0010 | AC90: 0.305 | AD90: 0.95385 | AE90: 0.31886 | AF90: -0.63499 | AG90: 0.63499 | AH90: 0.4032 | AJ90: 0.305 | AK90: 0.95385 | AL90: 0.31894 | AM90: -0.63491 | AN90: 0.63491 | AO90: 0.4031
A91: 0.32 | B91: 0.94924 | C91: 1.03200 | D91: 0.08276 | E91: 0.08276 | F91: 0.0068 | H91: 0.32 | I91: 0.94924 | J91: 0.85853 | K91: -0.09071 | L91: 0.09071 | M91: 0.0082 | O91: 0.32 | P91: 0.94924 | Q91: 0.74155 | R91: -0.20769 | S91: 0.20769 | T91: 0.0431 | V91: 0.32 | W91: 0.94924 | X91: 0.91499 | Y91: -0.03425 | Z91: 0.03425 | AA91: 0.0012 | AC91: 0.32 | AD91: 0.94924 | AE91: 0.33488 | AF91: -0.61436 | AG91: 0.61436 | AH91: 0.3774 | AJ91: 0.32 | AK91: 0.94924 | AL91: 0.33499 | AM91: -0.61424 | AN91: 0.61424 | AO91: 0.3773
A92: 0.335 | B92: 0.94441 | C92: 1.03350 | D92: 0.08909 | E92: 0.08909 | F92: 0.0079 | H92: 0.335 | I92: 0.94441 | J92: 0.85518 | K92: -0.08923 | L92: 0.08923 | M92: 0.0080 | O92: 0.335 | P92: 0.94441 | Q92: 0.73615 | R92: -0.20826 | S92: 0.20826 | T92: 0.0434 | V92: 0.335 | W92: 0.94441 | X92: 0.90741 | Y92: -0.03700 | Z92: 0.03700 | AA92: 0.0014 | AC92: 0.335 | AD92: 0.94441 | AE92: 0.35089 | AF92: -0.59352 | AG92: 0.59352 | AH92: 0.3523 | AJ92: 0.335 | AK92: 0.94441 | AL92: 0.35104 | AM92: -0.59337 | AN92: 0.59337 | AO92: 0.3521
A93: 0.35 | B93: 0.93937 | C93: 1.03500 | D93: 0.09563 | E93: 0.09563 | F93: 0.0091 | H93: 0.35 | I93: 0.93937 | J93: 0.85170 | K93: -0.08767 | L93: 0.08767 | M93: 0.0077 | O93: 0.35 | P93: 0.93937 | Q93: 0.73053 | R93: -0.20885 | S93: 0.20885 | T93: 0.0436 | V93: 0.35 | W93: 0.93937 | X93: 0.89944 | Y93: -0.03993 | Z93: 0.03993 | AA93: 0.0016 | AC93: 0.35 | AD93: 0.93937 | AE93: 0.36688 | AF93: -0.57249 | AG93: 0.57249 | AH93: 0.3277 | AJ93: 0.35 | AK93: 0.93937 | AL93: 0.36707 | AM93: -0.57230 | AN93: 0.57230 | AO93: 0.3275
A94: 0.365 | B94: 0.93412 | C94: 1.03650 | D94: 0.10238 | E94: 0.10238 | F94: 0.0105 | H94: 0.365 | I94: 0.93412 | J94: 0.84810 | K94: -0.08603 | L94: 0.08603 | M94: 0.0074 | O94: 0.365 | P94: 0.93412 | Q94: 0.72469 | R94: -0.20943 | S94: 0.20943 | T94: 0.0439 | V94: 0.365 | W94: 0.93412 | X94: 0.89108 | Y94: -0.04304 | Z94: 0.04304 | AA94: 0.0019 | AC94: 0.365 | AD94: 0.93412 | AE94: 0.38285 | AF94: -0.55127 | AG94: 0.55127 | AH94: 0.3039 | AJ94: 0.365 | AK94: 0.93412 | AL94: 0.38310 | AM94: -0.55103 | AN94: 0.55103 | AO94: 0.3036
A95: 0.38 | B95: 0.92866 | C95: 1.03800 | D95: 0.10934 | E95: 0.10934 | F95: 0.0120 | H95: 0.38 | I95: 0.92866 | J95: 0.84437 | K95: -0.08430 | L95: 0.08430 | M95: 0.0071 | O95: 0.38 | P95: 0.92866 | Q95: 0.71864 | R95: -0.21003 | S95: 0.21003 | T95: 0.0441 | V95: 0.38 | W95: 0.92866 | X95: 0.88234 | Y95: -0.04633 | Z95: 0.04633 | AA95: 0.0021 | AC95: 0.38 | AD95: 0.92866 | AE95: 0.39879 | AF95: -0.52988 | AG95: 0.52988 | AH95: 0.2808 | AJ95: 0.38 | AK95: 0.92866 | AL95: 0.39910 | AM95: -0.52956 | AN95: 0.52956 | AO95: 0.2804
A96: 0.395 | B96: 0.92300 | C96: 1.03950 | D96: 0.11650 | E96: 0.11650 | F96: 0.0136 | H96: 0.395 | I96: 0.92300 | J96: 0.84051 | K96: -0.08248 | L96: 0.08248 | M96: 0.0068 | O96: 0.395 | P96: 0.92300 | Q96: 0.71237 | R96: -0.21062 | S96: 0.21062 | T96: 0.0444 | V96: 0.395 | W96: 0.92300 | X96: 0.87321 | Y96: -0.04979 | Z96: 0.04979 | AA96: 0.0025 | AC96: 0.395 | AD96: 0.92300 | AE96: 0.41469 | AF96: -0.50831 | AG96: 0.50831 | AH96: 0.2584 | AJ96: 0.395 | AK96: 0.92300 | AL96: 0.41508 | AM96: -0.50791 | AN96: 0.50791 | AO96: 0.2580
A97: 0.41 | B97: 0.91712 | C97: 1.04100 | D97: 0.12388 | E97: 0.12388 | F97: 0.0153 | H97: 0.41 | I97: 0.91712 | J97: 0.83653 | K97: -0.08059 | L97: 0.08059 | M97: 0.0065 | O97: 0.41 | P97: 0.91712 | Q97: 0.70590 | R97: -0.21122 | S97: 0.21122 | T97: 0.0446 | V97: 0.41 | W97: 0.91712 | X97: 0.86369 | Y97: -0.05343 | Z97: 0.05343 | AA97: 0.0029 | AC97: 0.41 | AD97: 0.91712 | AE97: 0.43054 | AF97: -0.48658 | AG97: 0.48658 | AH97: 0.2368 | AJ97: 0.41 | AK97: 0.91712 | AL97: 0.43104 | AM97: -0.48609 | AN97: 0.48609 | AO97: 0.2363
A98: 0.425 | B98: 0.91104 | C98: 1.04250 | D98: 0.13146 | E98: 0.13146 | F98: 0.0173 | H98: 0.425 | I98: 0.91104 | J98: 0.83243 | K98: -0.07861 | L98: 0.07861 | M98: 0.0062 | O98: 0.425 | P98: 0.91104 | Q98: 0.69922 | R98: -0.21182 | S98: 0.21182 | T98: 0.0449 | V98: 0.425 | W98: 0.91104 | X98: 0.85380 | Y98: -0.05724 | Z98: 0.05724 | AA98: 0.0033 | AC98: 0.425 | AD98: 0.91104 | AE98: 0.44635 | AF98: -0.46469 | AG98: 0.46469 | AH98: 0.2159 | AJ98: 0.425 | AK98: 0.91104 | AL98: 0.44696 | AM98: -0.46408 | AN98: 0.46408 | AO98: 0.2154
A99: 0.44 | B99: 0.90475 | C99: 1.04400 | D99: 0.13925 | E99: 0.13925 | F99: 0.0194 | H99: 0.44 | I99: 0.90475 | J99: 0.82819 | K99: -0.07656 | L99: 0.07656 | M99: 0.0059 | O99: 0.44 | P99: 0.90475 | Q99: 0.69234 | R99: -0.21241 | S99: 0.21241 | T99: 0.0451 | V99: 0.44 | W99: 0.90475 | X99: 0.84352 | Y99: -0.06123 | Z99: 0.06123 | AA99: 0.0037 | AC99: 0.44 | AD99: 0.90475 | AE99: 0.46209 | AF99: -0.44266 | AG99: 0.44266 | AH99: 0.1959 | AJ99: 0.44 | AK99: 0.90475 | AL99: 0.46285 | AM99: -0.44191 | AN99: 0.44191 | AO99: 0.1953
A100: =A99+(b-a)/200 -> 0.455 | B100: 0.89826 | C100: 1.04550 | D100: 0.14724 | E100: 0.14724 | F100: 0.0217 | H100: 0.455 | I100: 0.89826 | J100: 0.82383 | K100: -0.07443 | L100: 0.07443 | M100: 0.0055 | O100: =O99+(bb-aa)/200 -> 0.455 | P100: 0.89826 | Q100: 0.68525 | R100: -0.21301 | S100: 0.21301 | T100: 0.0454 | V100: =V99+(bbb-aaa)/200 -> 0.455 | W100: 0.89826 | X100: 0.83286 | Y100: -0.06540 | Z100: 0.06540 | AA100: 0.0043 | AC100: =AC99+(bbbb-aaaa)/200 -> 0.455 | AD100: 0.89826 | AE100: 0.47777 | AF100: -0.42049 | AG100: 0.42049 | AH100: 0.1768 | AJ100: =AJ99+(bbbbb-aaaaa)/200 -> 0.455 | AK100: 0.89826 | AL100: 0.47869 | AM100: -0.41957 | AN100: 0.41957 | AO100: 0.1760
A101: 0.47 | B101: 0.89157 | C101: 1.04700 | D101: 0.15543 | E101: 0.15543 | F101: 0.0242 | H101: 0.47 | I101: 0.89157 | J101: 0.81935 | K101: -0.07222 | L101: 0.07222 | M101: 0.0052 | O101: 0.47 | P101: 0.89157 | Q101: 0.67797 | R101: -0.21360 | S101: 0.21360 | T101: 0.0456 | V101: 0.47 | W101: 0.89157 | X101: 0.82182 | Y101: -0.06975 | Z101: 0.06975 | AA101: 0.0049 | AC101: 0.47 | AD101: 0.89157 | AE101: 0.49338 | AF101: -0.39819 | AG101: 0.39819 | AH101: 0.1586 | AJ101: 0.47 | AK101: 0.89157 | AL101: 0.49450 | AM101: -0.39707 | AN101: 0.39707 | AO101: 0.1577
A102: 0.485 | B102: 0.88467 | C102: 1.04850 | D102: 0.16383 | E102: 0.16383 | F102: 0.0268 | H102: 0.485 | I102: 0.88467 | J102: 0.81474 | K102: -0.06994 | L102: 0.06994 | M102: 0.0049 | O102: 0.485 | P102: 0.88467 | Q102: 0.67049 | R102: -0.21419 | S102: 0.21419 | T102: 0.0459 | V102: 0.485 | W102: 0.88467 | X102: 0.81039 | Y102: -0.07428 | Z102: 0.07428 | AA102: 0.0055 | AC102: 0.485 | AD102: 0.88467 | AE102: 0.50890 | AF102: -0.37577 | AG102: 0.37577 | AH102: 0.1412 | AJ102: 0.485 | AK102: 0.88467 | AL102: 0.51026 | AM102: -0.37442 | AN102: 0.37442 | AO102: 0.1402
A103: 0.5 | B103: 0.87758 | C103: 1.05000 | D103: 0.17242 | E103: 0.17242 | F103: 0.0297 | H103: 0.5 | I103: 0.87758 | J103: 0.81000 | K103: -0.06758 | L103: 0.06758 | M103: 0.0046 | O103: 0.5 | P103: 0.87758 | Q103: 0.66281 | R103: -0.21477 | S103: 0.21477 | T103: 0.0461 | V103: 0.5 | W103: 0.87758 | X103: 0.79859 | Y103: -0.07899 | Z103: 0.07899 | AA103: 0.0062 | AC103: 0.5 | AD103: 0.87758 | AE103: 0.52434 | AF103: -0.35324 | AG103: 0.35324 | AH103: 0.1248 | AJ103: 0.5 | AK103: 0.87758 | AL103: 0.52597 | AM103: -0.35161 | AN103: 0.35161 | AO103: 0.1236
A104: 0.515 | B104: 0.87029 | C104: 1.05150 | D104: 0.18121 | E104: 0.18121 | F104: 0.0328 | H104: 0.515 | I104: 0.87029 | J104: 0.80514 | K104: -0.06516 | L104: 0.06516 | M104: 0.0042 | O104: 0.515 | P104: 0.87029 | Q104: 0.65495 | R104: -0.21535 | S104: 0.21535 | T104: 0.0464 | V104: 0.515 | W104: 0.87029 | X104: 0.78641 | Y104: -0.08388 | Z104: 0.08388 | AA104: 0.0070 | AC104: 0.515 | AD104: 0.87029 | AE104: 0.53969 | AF104: -0.33060 | AG104: 0.33060 | AH104: 0.1093 | AJ104: 0.515 | AK104: 0.87029 | AL104: 0.54163 | AM104: -0.32866 | AN104: 0.32866 | AO104: 0.1080
A105: 0.53 | B105: 0.86281 | C105: 1.05300 | D105: 0.19019 | E105: 0.19019 | F105: 0.0362 | H105: 0.53 | I105: 0.86281 | J105: 0.80015 | K105: -0.06266 | L105: 0.06266 | M105: 0.0039 | O105: 0.53 | P105: 0.86281 | Q105: 0.64689 | R105: -0.21592 | S105: 0.21592 | T105: 0.0466 | V105: 0.53 | W105: 0.86281 | X105: 0.77385 | Y105: -0.08895 | Z105: 0.08895 | AA105: 0.0079 | AC105: 0.53 | AD105: 0.86281 | AE105: 0.55493 | AF105: -0.30787 | AG105: 0.30787 | AH105: 0.0948 | AJ105: 0.53 | AK105: 0.86281 | AL105: 0.55724 | AM105: -0.30557 | AN105: 0.30557 | AO105: 0.0934
A106: 0.545 | B106: 0.85513 | C106: 1.05450 | D106: 0.19937 | E106: 0.19937 | F106: 0.0397 | H106: 0.545 | I106: 0.85513 | J106: 0.79503 | K106: -0.06009 | L106: 0.06009 | M106: 0.0036 | O106: 0.545 | P106: 0.85513 | Q106: 0.63864 | R106: -0.21648 | S106: 0.21648 | T106: 0.0469 | V106: 0.545 | W106: 0.85513 | X106: 0.76092 | Y106: -0.09421 | Z106: 0.09421 | AA106: 0.0089 | AC106: 0.545 | AD106: 0.85513 | AE106: 0.57007 | AF106: -0.28506 | AG106: 0.28506 | AH106: 0.0813 | AJ106: 0.545 | AK106: 0.85513 | AL106: 0.57279 | AM106: -0.28234 | AN106: 0.28234 | AO106: 0.0797
A107: 0.56 | B107: 0.84726 | C107: 1.05600 | D107: 0.20874 | E107: 0.20874 | F107: 0.0436 | H107: 0.56 | I107: 0.84726 | J107: 0.78979 | K107: -0.05746 | L107: 0.05746 | M107: 0.0033 | O107: 0.56 | P107: 0.84726 | Q107: 0.63022 | R107: -0.21704 | S107: 0.21704 | T107: 0.0471 | V107: 0.56 | W107: 0.84726 | X107: 0.74760 | Y107: -0.09965 | Z107: 0.09965 | AA107: 0.0099 | AC107: 0.56 | AD107: 0.84726 | AE107: 0.58508 | AF107: -0.26217 | AG107: 0.26217 | AH107: 0.0687 | AJ107: 0.56 | AK107: 0.84726 | AL107: 0.58829 | AM107: -0.25896 | AN107: 0.25896 | AO107: 0.0671
A108: 0.575 | B108: 0.83919 | C108: 1.05750 | D108: 0.21831 | E108: 0.21831 | F108: 0.0477 | H108: 0.575 | I108: 0.83919 | J108: 0.78442 | K108: -0.05477 | L108: 0.05477 | M108: 0.0030 | O108: 0.575 | P108: 0.83919 | Q108: 0.62161 | R108: -0.21759 | S108: 0.21759 | T108: 0.0473 | V108: 0.575 | W108: 0.83919 | X108: 0.73391 | Y108: -0.10529 | Z108: 0.10529 | AA108: 0.0111 | AC108: 0.575 | AD108: 0.83919 | AE108: 0.59998 | AF108: -0.23922 | AG108: 0.23922 | AH108: 0.0572 | AJ108: 0.575 | AK108: 0.83919 | AL108: 0.60374 | AM108: -0.23546 | AN108: 0.23546 | AO108: 0.0554
A109: 0.59 | B109: 0.83094 | C109: 1.05900 | D109: 0.22806 | E109: 0.22806 | F109: 0.0520 | H109: 0.59 | I109: 0.83094 | J109: 0.77893 | K109: -0.05201 | L109: 0.05201 | M109: 0.0027 | O109: 0.59 | P109: 0.83094 | Q109: 0.61282 | R109: -0.21812 | S109: 0.21812 | T109: 0.0476 | V109: 0.59 | W109: 0.83094 | X109: 0.71983 | Y109: -0.11111 | Z109: 0.11111 | AA109: 0.0123 | AC109: 0.59 | AD109: 0.83094 | AE109: 0.61474 | AF109: -0.21620 | AG109: 0.21620 | AH109: 0.0467 | AJ109: 0.59 | AK109: 0.83094 | AL109: 0.61913 | AM109: -0.21182 | AN109: 0.21182 | AO109: 0.0449
A110: 0.605 | B110: 0.82250 | C110: 1.06050 | D110: 0.23800 | E110: 0.23800 | F110: 0.0566 | H110: 0.605 | I110: 0.82250 | J110: 0.77331 | K110: -0.04919 | L110: 0.04919 | M110: 0.0024 | O110: 0.605 | P110: 0.82250 | Q110: 0.60385 | R110: -0.21865 | S110: 0.21865 | T110: 0.0478 | V110: 0.605 | W110: 0.82250 | X110: 0.70538 | Y110: -0.11712 | Z110: 0.11712 | AA110: 0.0137 | AC110: 0.605 | AD110: 0.82250 | AE110: 0.62936 | AF110: -0.19314 | AG110: 0.19314 | AH110: 0.0373 | AJ110: 0.605 | AK110: 0.82250 | AL110: 0.63446 | AM110: -0.18804 | AN110: 0.18804 | AO110: 0.0354
A111: 0.62 | B111: 0.81388 | C111: 1.06200 | D111: 0.24812 | E111: 0.24812 | F111: 0.0616 | H111: 0.62 | I111: 0.81388 | J111: 0.76757 | K111: -0.04631 | L111: 0.04631 | M111: 0.0021 | O111: 0.62 | P111: 0.81388 | Q111: 0.59471 | R111: -0.21917 | S111: 0.21917 | T111: 0.0480 | V111: 0.62 | W111: 0.81388 | X111: 0.69055 | Y111: -0.12333 | Z111: 0.12333 | AA111: 0.0152 | AC111: 0.62 | AD111: 0.81388 | AE111: 0.64384 | AF111: -0.17004 | AG111: 0.17004 | AH111: 0.0289 | AJ111: 0.62 | AK111: 0.81388 | AL111: 0.64974 | AM111: -0.16413 | AN111: 0.16413 | AO111: 0.0269
A112: 0.635 | B112: 0.80507 | C112: 1.06350 | D112: 0.25843 | E112: 0.25843 | F112: 0.0668 | H112: 0.635 | I112: 0.80507 | J112: 0.76170 | K112: -0.04337 | L112: 0.04337 | M112: 0.0019 | O112: 0.635 | P112: 0.80507 | Q112: 0.58540 | R112: -0.21967 | S112: 0.21967 | T112: 0.0483 | V112: 0.635 | W112: 0.80507 | X112: 0.67534 | Y112: -0.12973 | Z112: 0.12973 | AA112: 0.0168 | AC112: 0.635 | AD112: 0.80507 | AE112: 0.65816 | AF112: -0.14691 | AG112: 0.14691 | AH112: 0.0216 | AJ112: 0.635 | AK112: 0.80507 | AL112: 0.66498 | AM112: -0.14010 | AN112: 0.14010 | AO112: 0.0196
A113: 0.65 | B113: 0.79608 | C113: 1.06500 | D113: 0.26892 | E113: 0.26892 | F113: 0.0723 | H113: 0.65 | I113: 0.79608 | J113: 0.75570 | K113: -0.04038 | L113: 0.04038 | M113: 0.0016 | O113: 0.65 | P113: 0.79608 | Q113: 0.57592 | R113: -0.22017 | S113: 0.22017 | T113: 0.0485 | V113: 0.65 | W113: 0.79608 | X113: 0.65975 | Y113: -0.13634 | Z113: 0.13634 | AA113: 0.0186 | AC113: 0.65 | AD113: 0.79608 | AE113: 0.67232 | AF113: -0.12377 | AG113: 0.12377 | AH113: 0.0153 | AJ113: 0.65 | AK113: 0.79608 | AL113: 0.68016 | AM113: -0.11592 | AN113: 0.11592 | AO113: 0.0134
A114: 0.665 | B114: 0.78692 | C114: 1.06650 | D114: 0.27958 | E114: 0.27958 | F114: 0.0782 | H114: 0.665 | I114: 0.78692 | J114: 0.74958 | K114: -0.03734 | L114: 0.03734 | M114: 0.0014 | O114: 0.665 | P114: 0.78692 | Q114: 0.56627 | R114: -0.22065 | S114: 0.22065 | T114: 0.0487 | V114: 0.665 | W114: 0.78692 | X114: 0.64377 | Y114: -0.14314 | Z114: 0.14314 | AA114: 0.0205 | AC114: 0.665 | AD114: 0.78692 | AE114: 0.68631 | AF114: -0.10061 | AG114: 0.10061 | AH114: 0.0101 | AJ114: 0.665 | AK114: 0.78692 | AL114: 0.69530 | AM114: -0.09161 | AN114: 0.09161 | AO114: 0.0084
A115: 0.68 | B115: 0.77757 | C115: 1.06800 | D115: 0.29043 | E115: 0.29043 | F115: 0.0843 | H115: 0.68 | I115: 0.77757 | J115: 0.74333 | K115: -0.03424 | L115: 0.03424 | M115: 0.0012 | O115: 0.68 | P115: 0.77757 | Q115: 0.55645 | R115: -0.22112 | S115: 0.22112 | T115: 0.0489 | V115: 0.68 | W115: 0.77757 | X115: 0.62742 | Y115: -0.15015 | Z115: 0.15015 | AA115: 0.0225 | AC115: 0.68 | AD115: 0.77757 | AE115: 0.70012 | AF115: -0.07745 | AG115: 0.07745 | AH115: 0.0060 | AJ115: 0.68 | AK115: 0.77757 | AL115: 0.71040 | AM115: -0.06717 | AN115: 0.06717 | AO115: 0.0045
A116: 0.695 | B116: 0.76805 | C116: 1.06950 | D116: 0.30145 | E116: 0.30145 | F116: 0.0909 | H116: 0.695 | I116: 0.76805 | J116: 0.73695 | K116: -0.03110 | L116: 0.03110 | M116: 0.0010 | O116: 0.695 | P116: 0.76805 | Q116: 0.54648 | R116: -0.22158 | S116: 0.22158 | T116: 0.0491 | V116: 0.695 | W116: 0.76805 | X116: 0.61068 | Y116: -0.15737 | Z116: 0.15737 | AA116: 0.0248 | AC116: 0.695 | AD116: 0.76805 | AE116: 0.71375 | AF116: -0.05430 | AG116: 0.05430 | AH116: 0.0029 | AJ116: 0.695 | AK116: 0.76805 | AL116: 0.72547 | AM116: -0.04258 | AN116: 0.04258 | AO116: 0.0018
A117: 0.71 | B117: 0.75836 | C117: 1.07100 | D117: 0.31264 | E117: 0.31264 | F117: 0.0977 | H117: 0.71 | I117: 0.75836 | J117: 0.73045 | K117: -0.02791 | L117: 0.02791 | M117: 0.0008 | O117: 0.71 | P117: 0.75836 | Q117: 0.53634 | R117: -0.22202 | S117: 0.22202 | T117: 0.0493 | V117: 0.71 | W117: 0.75836 | X117: 0.59356 | Y117: -0.16480 | Z117: 0.16480 | AA117: 0.0272 | AC117: 0.71 | AD117: 0.75836 | AE117: 0.72719 | AF117: -0.03117 | AG117: 0.03117 | AH117: 0.0010 | AJ117: 0.71 | AK117: 0.75836 | AL117: 0.74051 | AM117: -0.01785 | AN117: 0.01785 | AO117: 0.0003
A118: 0.725 | B118: 0.74850 | C118: 1.07250 | D118: 0.32400 | E118: 0.32400 | F118: 0.1050 | H118: 0.725 | I118: 0.74850 | J118: 0.72382 | K118: -0.02467 | L118: 0.02467 | M118: 0.0006 | O118: 0.725 | P118: 0.74850 | Q118: 0.52605 | R118: -0.22245 | S118: 0.22245 | T118: 0.0495 | V118: 0.725 | W118: 0.74850 | X118: 0.57606 | Y118: -0.17244 | Z118: 0.17244 | AA118: 0.0297 | AC118: 0.725 | AD118: 0.74850 | AE118: 0.74042 | AF118: -0.00807 | AG118: 0.00807 | AH118: 0.0001 | AJ118: 0.725 | AK118: 0.74850 | AL118: 0.75553 | AM118: 0.00703 | AN118: 0.00703 | AO118: 0.0000
A119: 0.74 | B119: 0.73847 | C119: 1.07400 | D119: 0.33553 | E119: 0.33553 | F119: 0.1126 | H119: 0.74 | I119: 0.73847 | J119: 0.71707 | K119: -0.02140 | L119: 0.02140 | M119: 0.0005 | O119: 0.74 | P119: 0.73847 | Q119: 0.51560 | R119: -0.22286 | S119: 0.22286 | T119: 0.0497 | V119: 0.74 | W119: 0.73847 | X119: 0.55817 | Y119: -0.18030 | Z119: 0.18030 | AA119: 0.0325 | AC119: 0.74 | AD119: 0.73847 | AE119: 0.75346 | AF119: 0.01499 | AG119: 0.01499 | AH119: 0.0002 | AJ119: 0.74 | AK119: 0.73847 | AL119: 0.77053 | AM119: 0.03206 | AN119: 0.03206 | AO119: 0.0010
A120: 0.755 | B120: 0.72827 | C120: 1.07550 | D120: 0.34723 | E120: 0.34723 | F120: 0.1206 | H120: 0.755 | I120: 0.72827 | J120: 0.71019 | K120: -0.01808 | L120: 0.01808 | M120: 0.0003 | O120: 0.755 | P120: 0.72827 | Q120: 0.50500 | R120: -0.22327 | S120: 0.22327 | T120: 0.0498 | V120: 0.755 | W120: 0.72827 | X120: 0.53989 | Y120: -0.18838 | Z120: 0.18838 | AA120: 0.0355 | AC120: 0.755 | AD120: 0.72827 | AE120: 0.76627 | AF120: 0.03800 | AG120: 0.03800 | AH120: 0.0014 | AJ120: 0.755 | AK120: 0.72827 | AL120: 0.78553 | AM120: 0.05726 | AN120: 0.05726 | AO120: 0.0033
A121: 0.77 | B121: 0.71791 | C121: 1.07700 | D121: 0.35909 | E121: 0.35909 | F121: 0.1289 | H121: 0.77 | I121: 0.71791 | J121: 0.70319 | K121: -0.01472 | L121: 0.01472 | M121: 0.0002 | O121: 0.77 | P121: 0.71791 | Q121: 0.49426 | R121: -0.22365 | S121: 0.22365 | T121: 0.0500 | V121: 0.77 | W121: 0.71791 | X121: 0.52122 | Y121: -0.19669 | Z121: 0.19669 | AA121: 0.0387 | AC121: 0.77 | AD121: 0.71791 | AE121: 0.77887 | AF121: 0.06095 | AG121: 0.06095 | AH121: 0.0037 | AJ121: 0.77 | AK121: 0.71791 | AL121: 0.80054 | AM121: 0.08263 | AN121: 0.08263 | AO121: 0.0068
A122: 0.785 | B122: 0.70739 | C122: 1.07850 | D122: 0.37111 | E122: 0.37111 | F122: 0.1377 | H122: 0.785 | I122: 0.70739 | J122: 0.69606 | K122: -0.01133 | L122: 0.01133 | M122: 0.0001 | O122: 0.785 | P122: 0.70739 | Q122: 0.48336 | R122: -0.22403 | S122: 0.22403 | T122: 0.0502 | V122: 0.785 | W122: 0.70739 | X122: 0.50217 | Y122: -0.20522 | Z122: 0.20522 | AA122: 0.0421 | AC122: 0.785 | AD122: 0.70739 | AE122: 0.79123 | AF122: 0.08384 | AG122: 0.08384 | AH122: 0.0070 | AJ122: 0.785 | AK122: 0.70739 | AL122: 0.81557 | AM122: 0.10818 | AN122: 0.10818 | AO122: 0.0117
A123: 0.8 | B123: 0.69671 | C123: 1.08000 | D123: 0.38329 | E123: 0.38329 | F123: 0.1469 | H123: 0.8 | I123: 0.69671 | J123: 0.68880 | K123: -0.00791 | L123: 0.00791 | M123: 0.0001 | O123: 0.8 | P123: 0.69671 | Q123: 0.47232 | R123: -0.22439 | S123: 0.22439 | T123: 0.0503 | V123: 0.8 | W123: 0.69671 | X123: 0.48272 | Y123: -0.21399 | Z123: 0.21399 | AA123: 0.0458 | AC123: 0.8 | AD123: 0.69671 | AE123: 0.80336 | AF123: 0.10665 | AG123: 0.10665 | AH123: 0.0114 | AJ123: 0.8 | AK123: 0.69671 | AL123: 0.83062 | AM123: 0.13391 | AN123: 0.13391 | AO123: 0.0179
A124: 0.815 | B124: 0.68587 | C124: 1.08150 | D124: 0.39563 | E124: 0.39563 | F124: 0.1565 | H124: 0.815 | I124: 0.68587 | J124: 0.68142 | K124: -0.00445 | L124: 0.00445 | M124: 0.0000 | O124: 0.815 | P124: 0.68587 | Q124: 0.46114 | R124: -0.22473 | S124: 0.22473 | T124: 0.0505 | V124: 0.815 | W124: 0.68587 | X124: 0.46288 | Y124: -0.22299 | Z124: 0.22299 | AA124: 0.0497 | AC124: 0.815 | AD124: 0.68587 | AE124: 0.81524 | AF124: 0.12937 | AG124: 0.12937 | AH124: 0.0167 | AJ124: 0.815 | AK124: 0.68587 | AL124: 0.84572 | AM124: 0.15985 | AN124: 0.15985 | AO124: 0.0256
A125: 0.83 | B125: 0.67488 | C125: 1.08300 | D125: 0.40812 | E125: 0.40812 | F125: 0.1666 | H125: 0.83 | I125: 0.67488 | J125: 0.67391 | K125: -0.00097 | L125: 0.00097 | M125: 0.0000 | O125: 0.83 | P125: 0.67488 | Q125: 0.44981 | R125: -0.22506 | S125: 0.22506 | T125: 0.0507 | V125: 0.83 | W125: 0.67488 | X125: 0.44264 | Y125: -0.23223 | Z125: 0.23223 | AA125: 0.0539 | AC125: 0.83 | AD125: 0.67488 | AE125: 0.82688 | AF125: 0.15200 | AG125: 0.15200 | AH125: 0.0231 | AJ125: 0.83 | AK125: 0.67488 | AL125: 0.86088 | AM125: 0.18600 | AN125: 0.18600 | AO125: 0.0346
A126: 0.845 | B126: 0.66373 | C126: 1.08450 | D126: 0.42077 | E126: 0.42077 | F126: 0.1770 | H126: 0.845 | I126: 0.66373 | J126: 0.66627 | K126: 0.00254 | L126: 0.00254 | M126: 0.0000 | O126: 0.845 | P126: 0.66373 | Q126: 0.43836 | R126: -0.22538 | S126: 0.22538 | T126: 0.0508 | V126: 0.845 | W126: 0.66373 | X126: 0.42201 | Y126: -0.24172 | Z126: 0.24172 | AA126: 0.0584 | AC126: 0.845 | AD126: 0.66373 | AE126: 0.83825 | AF126: 0.17452 | AG126: 0.17452 | AH126: 0.0305 | AJ126: 0.845 | AK126: 0.66373 | AL126: 0.87611 | AM126: 0.21238 | AN126: 0.21238 | AO126: 0.0451
A127: 0.86 | B127: 0.65244 | C127: 1.08600 | D127: 0.43356 | E127: 0.43356 | F127: 0.1880 | H127: 0.86 | I127: 0.65244 | J127: 0.65851 | K127: 0.00607 | L127: 0.00607 | M127: 0.0000 | O127: 0.86 | P127: 0.65244 | Q127: 0.42676 | R127: -0.22568 | S127: 0.22568 | T127: 0.0509 | V127: 0.86 | W127: 0.65244 | X127: 0.40098 | Y127: -0.25146 | Z127: 0.25146 | AA127: 0.0632 | AC127: 0.86 | AD127: 0.65244 | AE127: 0.84936 | AF127: 0.19692 | AG127: 0.19692 | AH127: 0.0388 | AJ127: 0.86 | AK127: 0.65244 | AL127: 0.89144 | AM127: 0.23900 | AN127: 0.23900 | AO127: 0.0571
A128: 0.875 | B128: 0.64100 | C128: 1.08750 | D128: 0.44650 | E128: 0.44650 | F128: 0.1994 | H128: 0.875 | I128: 0.64100 | J128: 0.65062 | K128: 0.00963 | L128: 0.00963 | M128: 0.0001 | O128: 0.875 | P128: 0.64100 | Q128: 0.41503 | R128: -0.22596 | S128: 0.22596 | T128: 0.0511 | V128: 0.875 | W128: 0.64100 | X128: 0.37954 | Y128: -0.26145 | Z128: 0.26145 | AA128: 0.0684 | AC128: 0.875 | AD128: 0.64100 | AE128: 0.86020 | AF128: 0.21920 | AG128: 0.21920 | AH128: 0.0480 | AJ128: 0.875 | AK128: 0.64100 | AL128: 0.90687 | AM128: 0.26588 | AN128: 0.26588 | AO128: 0.0707
A129: 0.89 | B129: 0.62941 | C129: 1.08900 | D129: 0.45959 | E129: 0.45959 | F129: 0.2112 | H129: 0.89 | I129: 0.62941 | J129: 0.64261 | K129: 0.01320 | L129: 0.01320 | M129: 0.0002 | O129: 0.89 | P129: 0.62941 | Q129: 0.40318 | R129: -0.22623 | S129: 0.22623 | T129: 0.0512 | V129: 0.89 | W129: 0.62941 | X129: 0.35771 | Y129: -0.27170 | Z129: 0.27170 | AA129: 0.0738 | AC129: 0.89 | AD129: 0.62941 | AE129: 0.87076 | AF129: 0.24134 | AG129: 0.24134 | AH129: 0.0582 | AJ129: 0.89 | AK129: 0.62941 | AL129: 0.92244 | AM129: 0.29303 | AN129: 0.29303 | AO129: 0.0859
A130: 0.905 | B130: 0.61769 | C130: 1.09050 | D130: 0.47281 | E130: 0.47281 | F130: 0.2236 | H130: 0.905 | I130: 0.61769 | J130: 0.63447 | K130: 0.01679 | L130: 0.01679 | M130: 0.0003 | O130: 0.905 | P130: 0.61769 | Q130: 0.39119 | R130: -0.22649 | S130: 0.22649 | T130: 0.0513 | V130: 0.905 | W130: 0.61769 | X130: 0.33546 | Y130: -0.28222 | Z130: 0.28222 | AA130: 0.0796 | AC130: 0.905 | AD130: 0.61769 | AE130: 0.88103 | AF130: 0.26334 | AG130: 0.26334 | AH130: 0.0693 | AJ130: 0.905 | AK130: 0.61769 | AL130: 0.93817 | AM130: 0.32048 | AN130: 0.32048 | AO130: 0.1027
A131: 0.92 | B131: 0.60582 | C131: =aa00+bb00*A131 -> 1.09200 | D131: 0.48618 | E131: 0.48618 | F131: 0.2364 | H131: 0.92 | I131: 0.60582 | J131: =a0+b0*A131+c0*A131^2 -> 0.62621 | K131: 0.02039 | L131: 0.02039 | M131: 0.0004 | O131: 0.92 | P131: 0.60582 | Q131: =a00+b00*O131+c00*O131^2+d00*A131^3 -> 0.37909 | R131: -0.22673 | S131: 0.22673 | T131: 0.0514 | V131: 0.92 | W131: 0.60582 | X131: =a000+b000*V131+c000*V131^2+d000*O131^3+e000*O131^4 -> 0.31281 | Y131: -0.29301 | Z131: 0.29301 | AA131: 0.0859 | AC131: 0.92 | AD131: 0.60582 | AE131: =a0000+b0000*AC131+c0000*AC131^2+d0000*AC131^3+e0000*AC131^4+f0000*AC131^5 -> 0.89101 | AF131: 0.28519 | AG131: 0.28519 | AH131: 0.0813 | AJ131: 0.92 | AK131: 0.60582 | AL131: =a0000+b0000*AJ131+c0000*AJ131^2+d0000*AJ131^3+e0000*AJ131^4+f0000*AJ131^5+g00000*AJ131^6 -> 0.95407 | AM131: 0.34825 | AN131: 0.34825 | AO131: 0.1213
A132: =A131+(b-a)/200 -> 0.935 | B132: =COS(A132) -> 0.59382 | C132: 1.09350 | D132: =C132-B132 -> 0.49968 | E132: =ABS(D132) -> 0.49968 | F132: =D132^2 -> 0.2497 | H132: =H131+(b-a)/200 -> 0.935 | I132: =COS(H132) -> 0.59382 | J132: 0.61782 | K132: =J132-I132 -> 0.02400 | L132: =ABS(K132) -> 0.02400 | M132: =K132^2 -> 0.0006 | O132: =O131+(bb-aa)/200 -> 0.935 | P132: =COS(O132) -> 0.59382 | Q132: 0.36685 | R132: =Q132-P132 -> -0.22696 | S132: =ABS(R132) -> 0.22696 | T132: =R132^2 -> 0.0515 | V132: =V131+(bbb-aaa)/200 -> 0.935 | W132: =COS(V132) -> 0.59382 | X132: 0.28975 | Y132: =X132-W132 -> -0.30407 | Z132: =ABS(Y132) -> 0.30407 | AA132: =Y132^2 -> 0.0925 | AC132: =AC131+(bbbb-aaaa)/200 -> 0.935 | AD132: =COS(AC132) -> 0.59382 | AE132: 0.90069 | AF132: =AE132-AD132 -> 0.30687 | AG132: =ABS(AF132) -> 0.30687 | AH132: =AF132^2 -> 0.0942 | AJ132: =AJ131+(bbbbb-aaaaa)/200 -> 0.935 | AK132: =COS(AJ132) -> 0.59382 | AL132: 0.97017 | AM132: =AL132-AK132 -> 0.37635 | AN132: =ABS(AM132) -> 0.37635 | AO132: =AM132^2 -> 0.1416
A133: 0.95 | B133: 0.58168 | C133: 1.09500 | D133: 0.51332 | E133: 0.51332 | F133: 0.2635 | H133: 0.95 | I133: 0.58168 | J133: 0.60930 | K133: 0.02762 | L133: 0.02762 | M133: 0.0008 | O133: 0.95 | P133: 0.58168 | Q133: 0.35450 | R133: -0.22718 | S133: 0.22718 | T133: 0.0516 | V133: 0.95 | W133: 0.58168 | X133: 0.26628 | Y133: -0.31541 | Z133: 0.31541 | AA133: 0.0995 | AC133: 0.95 | AD133: 0.58168 | AE133: 0.91006 | AF133: 0.32837 | AG133: 0.32837 | AH133: 0.1078 | AJ133: 0.95 | AK133: 0.58168 | AL133: 0.98651 | AM133: 0.40482 | AN133: 0.40482 | AO133: 0.1639
A134: 0.965 | B134: 0.56942 | C134: 1.09650 | D134: 0.52708 | E134: 0.52708 | F134: 0.2778 | H134: 0.965 | I134: 0.56942 | J134: 0.60066 | K134: 0.03124 | L134: 0.03124 | M134: 0.0010 | O134: 0.965 | P134: 0.56942 | Q134: 0.34204 | R134: -0.22738 | S134: 0.22738 | T134: 0.0517 | V134: 0.965 | W134: 0.56942 | X134: 0.24238 | Y134: -0.32703 | Z134: 0.32703 | AA134: 0.1070 | AC134: 0.965 | AD134: 0.56942 | AE134: 0.91912 | AF134: 0.34970 | AG134: 0.34970 | AH134: 0.1223 | AJ134: 0.965 | AK134: 0.56942 | AL134: 1.00310 | AM134: 0.43368 | AN134: 0.43368 | AO134: 0.1881
A135: 0.98 | B135: 0.55702 | C135: 1.09800 | D135: 0.54098 | E135: 0.54098 | F135: 0.2927 | H135: 0.98 | I135: 0.55702 | J135: 0.59189 | K135: 0.03487 | L135: 0.03487 | M135: 0.0012 | O135: 0.98 | P135: 0.55702 | Q135: 0.32945 | R135: -0.22757 | S135: 0.22757 | T135: 0.0518 | V135: 0.98 | W135: 0.55702 | X135: 0.21807 | Y135: -0.33895 | Z135: 0.33895 | AA135: 0.1149 | AC135: 0.98 | AD135: 0.55702 | AE135: 0.92786 | AF135: 0.37083 | AG135: 0.37083 | AH135: 0.1375 | AJ135: 0.98 | AK135: 0.55702 | AL135: 1.01998 | AM135: 0.46296 | AN135: 0.46296 | AO135: 0.2143
A136: 0.995 | B136: 0.54450 | C136: 1.09950 | D136: 0.55500 | E136: 0.55500 | F136: 0.3080 | H136: 0.995 | I136: 0.54450 | J136: 0.58299 | K136: 0.03849 | L136: 0.03849 | M136: 0.0015 | O136: 0.995 | P136: 0.54450 | Q136: 0.31676 | R136: -0.22775 | S136: 0.22775 | T136: 0.0519 | V136: 0.995 | W136: 0.54450 | X136: 0.19334 | Y136: -0.35116 | Z136: 0.35116 | AA136: 0.1233 | AC136: 0.995 | AD136: 0.54450 | AE136: 0.93627 | AF136: 0.39177 | AG136: 0.39177 | AH136: 0.1535 | AJ136: 0.995 | AK136: 0.54450 | AL136: 1.03719 | AM136: 0.49268 | AN136: 0.49268 | AO136: 0.2427
A137: 1.01 | B137: 0.53186 | C137: 1.10100 | D137: 0.56914 | E137: 0.56914 | F137: 0.3239 | H137: 1.01 | I137: 0.53186 | J137: 0.57397 | K137: 0.04211 | L137: 0.04211 | M137: 0.0018 | O137: 1.01 | P137: 0.53186 | Q137: 0.30395 | R137: -0.22791 | S137: 0.22791 | T137: 0.0519 | V137: 1.01 | W137: 0.53186 | X137: 0.16818 | Y137: -0.36368 | Z137: 0.36368 | AA137: 0.1323 | AC137: 1.01 | AD137: 0.53186 | AE137: 0.94435 | AF137: 0.41249 | AG137: 0.41249 | AH137: 0.1701 | AJ137: 1.01 | AK137: 0.53186 | AL137: 1.05475 | AM137: 0.52289 | AN137: 0.52289 | AO137: 0.2734
A138: 1.025 | B138: 0.51910 | C138: 1.10250 | D138: 0.58340 | E138: 0.58340 | F138: 0.3404 | H138: 1.025 | I138: 0.51910 | J138: 0.56482 | K138: 0.04573 | L138: 0.04573 | M138: 0.0021 | O138: 1.025 | P138: 0.51910 | Q138: 0.29104 | R138: -0.22806 | S138: 0.22806 | T138: 0.0520 | V138: 1.025 | W138: 0.51910 | X138: 0.14259 | Y138: -0.37651 | Z138: 0.37651 | AA138: 0.1418 | AC138: 1.025 | AD138: 0.51910 | AE138: 0.95209 | AF138: 0.43299 | AG138: 0.43299 | AH138: 0.1875 | AJ138: 1.025 | AK138: 0.51910 | AL138: 1.07270 | AM138: 0.55360 | AN138: 0.55360 | AO138: 0.3065
A139: 1.04 | B139: 0.50622 | C139: 1.10400 | D139: 0.59778 | E139: 0.59778 | F139: 0.3573 | H139: 1.04 | I139: 0.50622 | J139: 0.55555 | K139: 0.04933 | L139: 0.04933 | M139: 0.0024 | O139: 1.04 | P139: 0.50622 | Q139: 0.27802 | R139: -0.22820 | S139: 0.22820 | T139: 0.0521 | V139: 1.04 | W139: 0.50622 | X139: 0.11657 | Y139: -0.38965 | Z139: 0.38965 | AA139: 0.1518 | AC139: 1.04 | AD139: 0.50622 | AE139: 0.95949 | AF139: 0.45327 | AG139: 0.45327 | AH139: 0.2055 | AJ139: 1.04 | AK139: 0.50622 | AL139: 1.09109 | AM139: 0.58487 | AN139: 0.58487 | AO139: 0.3421
A140: 1.055 | B140: 0.49323 | C140: 1.10550 | D140: 0.61227 | E140: 0.61227 | F140: 0.3749 | H140: 1.055 | I140: 0.49323 | J140: 0.54615 | K140: 0.05293 | L140: 0.05293 | M140: 0.0028 | O140: 1.055 | P140: 0.49323 | Q140: 0.26490 | R140: -0.22833 | S140: 0.22833 | T140: 0.0521 | V140: 1.055 | W140: 0.49323 | X140: 0.09012 | Y140: -0.40311 | Z140: 0.40311 | AA140: 0.1625 | AC140: 1.055 | AD140: 0.49323 | AE140: 0.96654 | AF140: 0.47331 | AG140: 0.47331 | AH140: 0.2240 | AJ140: 1.055 | AK140: 0.49323 | AL140: 1.10994 | AM140: 0.61671 | AN140: 0.61671 | AO140: 0.3803
A141: 1.07 | B141: 0.48012 | C141: 1.10700 | D141: 0.62688 | E141: 0.62688 | F141: 0.3930 | H141: 1.07 | I141: 0.48012 | J141: 0.53663 | K141: 0.05650 | L141: 0.05650 | M141: 0.0032 | O141: 1.07 | P141: 0.48012 | Q141: 0.25168 | R141: -0.22845 | S141: 0.22845 | T141: 0.0522 | V141: 1.07 | W141: 0.48012 | X141: 0.06323 | Y141: -0.41690 | Z141: 0.41690 | AA141: 0.1738 | AC141: 1.07 | AD141: 0.48012 | AE141: 0.97324 | AF141: 0.49311 | AG141: 0.49311 | AH141: 0.2432 | AJ141: 1.07 | AK141: 0.48012 | AL141: 1.12931 | AM141: 0.64919 | AN141: 0.64919 | AO141: 0.4214
A142: 1.085 | B142: 0.46691 | C142: 1.10850 | D142: 0.64159 | E142: 0.64159 | F142: 0.4116 | H142: 1.085 | I142: 0.46691 | J142: 0.52698 | K142: 0.06006 | L142: 0.06006 | M142: 0.0036 | O142: 1.085 | P142: 0.46691 | Q142: 0.23836 | R142: -0.22855 | S142: 0.22855 | T142: 0.0522 | V142: 1.085 | W142: 0.46691 | X142: 0.03589 | Y142: -0.43102 | Z142: 0.43102 | AA142: 0.1858 | AC142: 1.085 | AD142: 0.46691 | AE142: 0.97957 | AF142: 0.51265 | AG142: 0.51265 | AH142: 0.2628 | AJ142: 1.085 | AK142: 0.46691 | AL142: 1.14924 | AM142: 0.68233 | AN142: 0.68233 | AO142: 0.4656
A143: 1.1 | B143: 0.45360 | C143: 1.11000 | D143: 0.65640 | E143: 0.65640 | F143: 0.4309 | H143: 1.1 | I143: 0.45360 | J143: 0.51720 | K143: 0.06360 | L143: 0.06360 | M143: 0.0040 | O143: 1.1 | P143: 0.45360 | Q143: 0.22495 | R143: -0.22865 | S143: 0.22865 | T143: 0.0523 | V143: 1.1 | W143: 0.45360 | X143: 0.00811 | Y143: -0.44549 | Z143: 0.44549 | AA143: 0.1985 | AC143: 1.1 | AD143: 0.45360 | AE143: 0.98553 | AF143: 0.53194 | AG143: 0.53194 | AH143: 0.2830 | AJ143: 1.1 | AK143: 0.45360 | AL143: 1.16978 | AM143: 0.71618 | AN143: 0.71618 | AO143: 0.5129
A144: 1.115 | B144: 0.44018 | C144: 1.11150 | D144: 0.67132 | E144: 0.67132 | F144: 0.4507 | H144: 1.115 | I144: 0.44018 | J144: 0.50730 | K144: 0.06712 | L144: 0.06712 | M144: 0.0045 | O144: 1.115 | P144: 0.44018 | Q144: 0.21144 | R144: -0.22874 | S144: 0.22874 | T144: 0.0523 | V144: 1.115 | W144: 0.44018 | X144: -0.02012 | Y144: -0.46030 | Z144: 0.46030 | AA144: 0.2119 | AC144: 1.115 | AD144: 0.44018 | AE144: 0.99113 | AF144: 0.55095 | AG144: 0.55095 | AH144: 0.3035 | AJ144: 1.115 | AK144: 0.44018 | AL144: 1.19097 | AM144: 0.75079 | AN144: 0.75079 | AO144: 0.5637
A145: 1.13 | B145: 0.42666 | C145: 1.11300 | D145: 0.68634 | E145: 0.68634 | F145: 0.4711 | H145: 1.13 | I145: 0.42666 | J145: 0.49727 | K145: 0.07061 | L145: 0.07061 | M145: 0.0050 | O145: 1.13 | P145: 0.42666 | Q145: 0.19785 | R145: -0.22881 | S145: 0.22881 | T145: 0.0524 | V145: 1.13 | W145: 0.42666 | X145: -0.04881 | Y145: -0.47547 | Z145: 0.47547 | AA145: 0.2261 | AC145: 1.13 | AD145: 0.42666 | AE145: 0.99634 | AF145: 0.56968 | AG145: 0.56968 | AH145: 0.3245 | AJ145: 1.13 | AK145: 0.42666 | AL145: 1.21286 | AM145: 0.78621 | AN145: 0.78621 | AO145: 0.6181
A146: 1.145 | B146: 0.41305 | C146: 1.11450 | D146: 0.70145 | E146: 0.70145 | F146: 0.4920 | H146: 1.145 | I146: 0.41305 | J146: 0.48711 | K146: 0.07407 | L146: 0.07407 | M146: 0.0055 | O146: 1.145 | P146: 0.41305 | Q146: 0.18416 | R146: -0.22888 | S146: 0.22888 | T146: 0.0524 | V146: 1.145 | W146: 0.41305 | X146: -0.07795 | Y146: -0.49100 | Z146: 0.49100 | AA146: 0.2411 | AC146: 1.145 | AD146: 0.41305 | AE146: 1.00118 | AF146: 0.58813 | AG146: 0.58813 | AH146: 0.3459 | AJ146: 1.145 | AK146: 0.41305 | AL146: 1.23553 | AM146: 0.82248 | AN146: 0.82248 | AO146: 0.6765
A147: 1.16 | B147: 0.39934 | C147: 1.11600 | D147: 0.71666 | E147: 0.71666 | F147: 0.5136 | H147: 1.16 | I147: 0.39934 | J147: 0.47683 | K147: 0.07749 | L147: 0.07749 | M147: 0.0060 | O147: 1.16 | P147: 0.39934 | Q147: 0.17039 | R147: -0.22895 | S147: 0.22895 | T147: 0.0524 | V147: 1.16 | W147: 0.39934 | X147: -0.10756 | Y147: -0.50690 | Z147: 0.50690 | AA147: 0.2569 | AC147: 1.16 | AD147: 0.39934 | AE147: 1.00562 | AF147: 0.60628 | AG147: 0.60628 | AH147: 0.3676 | AJ147: 1.16 | AK147: 0.39934 | AL147: 1.25901 | AM147: 0.85967 | AN147: 0.85967 | AO147: 0.7390
A148: 1.175 | B148: 0.38554 | C148: 1.11750 | D148: 0.73196 | E148: 0.73196 | F148: 0.5358 | H148: 1.175 | I148: 0.38554 | J148: 0.46643 | K148: 0.08088 | L148: 0.08088 | M148: 0.0065 | O148: 1.175 | P148: 0.38554 | Q148: 0.15654 | R148: -0.22900 | S148: 0.22900 | T148: 0.0524 | V148: 1.175 | W148: 0.38554 | X148: -0.13763 | Y148: -0.52317 | Z148: 0.52317 | AA148: 0.2737 | AC148: 1.175 | AD148: 0.38554 | AE148: 1.00968 | AF148: 0.62413 | AG148: 0.62413 | AH148: 0.3895 | AJ148: 1.175 | AK148: 0.38554 | AL148: 1.28337 | AM148: 0.89783 | AN148: 0.89783 | AO148: 0.8061
A149: 1.19 | B149: 0.37166 | C149: 1.11900 | D149: 0.74734 | E149: 0.74734 | F149: 0.5585 | H149: 1.19 | I149: 0.37166 | J149: 0.45589 | K149: 0.08423 | L149: 0.08423 | M149: 0.0071 | O149: 1.19 | P149: 0.37166 | Q149: 0.14261 | R149: -0.22905 | S149: 0.22905 | T149: 0.0525 | V149: 1.19 | W149: 0.37166 | X149: -0.16817 | Y149: -0.53983 | Z149: 0.53983 | AA149: 0.2914 | AC149: 1.19 | AD149: 0.37166 | AE149: 1.01334 | AF149: 0.64168 | AG149: 0.64168 | AH149: 0.4117 | AJ149: 1.19 | AK149: 0.37166 | AL149: 1.30867 | AM149: 0.93701 | AN149: 0.93701 | AO149: 0.8780
A150: 1.205 | B150: 0.35769 | C150: 1.12050 | D150: 0.76281 | E150: 0.76281 | F150: 0.5819 | H150: 1.205 | I150: 0.35769 | J150: 0.44523 | K150: 0.08754 | L150: 0.08754 | M150: 0.0077 | O150: 1.205 | P150: 0.35769 | Q150: 0.12860 | R150: -0.22909 | S150: 0.22909 | T150: 0.0525 | V150: 1.205 | W150: 0.35769 | X150: -0.19919 | Y150: -0.55689 | Z150: 0.55689 | AA150: 0.3101 | AC150: 1.205 | AD150: 0.35769 | AE150: 1.01659 | AF150: 0.65890 | AG150: 0.65890 | AH150: 0.4342 | AJ150: 1.205 | AK150: 0.35769 | AL150: 1.33498 | AM150: 0.97729 | AN150: 0.97729 | AO150: 0.9551
A151: 1.22 | B151: 0.34365 | C151: 1.12200 | D151: 0.77835 | E151: 0.77835 | F151: 0.6058 | H151: 1.22 | I151: 0.34365 | J151: 0.43445 | K151: 0.09080 | L151: 0.09080 | M151: 0.0082 | O151: 1.22 | P151: 0.34365 | Q151: 0.11452 | R151: -0.22913 | S151: 0.22913 | T151: 0.0525 | V151: 1.22 | W151: 0.34365 | X151: -0.23069 | Y151: -0.57434 | Z151: 0.57434 | AA151: 0.3299 | AC151: 1.22 | AD151: 0.34365 | AE151: 1.01945 | AF151: 0.67580 | AG151: 0.67580 | AH151: 0.4567 | AJ151: 1.22 | AK151: 0.34365 | AL151: 1.36237 | AM151: 1.01872 | AN151: 1.01872 | AO151: 1.0378
A152: 1.235 | B152: 0.32952 | C152: 1.12350 | D152: 0.79398 | E152: 0.79398 | F152: 0.6304 | H152: 1.235 | I152: 0.32952 | J152: 0.42354 | K152: 0.09402 | L152: 0.09402 | M152: 0.0088 | O152: 1.235 | P152: 0.32952 | Q152: 0.10036 | R152: -0.22916 | S152: 0.22916 | T152: 0.0525 | V152: 1.235 | W152: 0.32952 | X152: -0.26267 | Y152: -0.59220 | Z152: 0.59220 | AA152: 0.3507 | AC152: 1.235 | AD152: 0.32952 | AE152: 1.02189 | AF152: 0.69237 | AG152: 0.69237 | AH152: 0.4794 | AJ152: 1.235 | AK152: 0.32952 | AL152: 1.39090 | AM152: 1.06138 | AN152: 1.06138 | AO152: 1.1265
A153: 1.25 | B153: 0.31532 | C153: 1.12500 | D153: 0.80968 | E153: 0.80968 | F153: 0.6556 | H153: 1.25 | I153: 0.31532 | J153: 0.41250 | K153: 0.09718 | L153: 0.09718 | M153: 0.0094 | O153: 1.25 | P153: 0.31532 | Q153: 0.08613 | R153: -0.22919 | S153: 0.22919 | T153: 0.0525 | V153: 1.25 | W153: 0.31532 | X153: -0.29515 | Y153: -0.61047 | Z153: 0.61047 | AA153: 0.3727 | AC153: 1.25 | AD153: 0.31532 | AE153: 1.02393 | AF153: 0.70860 | AG153: 0.70860 | AH153: 0.5021 | AJ153: 1.25 | AK153: 0.31532 | AL153: 1.42065 | AM153: 1.10533 | AN153: 1.10533 | AO153: 1.2218
A154: 1.265 | B154: 0.30105 | C154: 1.12650 | D154: 0.82545 | E154: 0.82545 | F154: 0.6814 | H154: 1.265 | I154: 0.30105 | J154: 0.40134 | K154: 0.10028 | L154: 0.10028 | M154: 0.0101 | O154: 1.265 | P154: 0.30105 | Q154: 0.07184 | R154: -0.22922 | S154: 0.22922 | T154: 0.0525 | V154: 1.265 | W154: 0.30105 | X154: -0.32811 | Y154: -0.62917 | Z154: 0.62917 | AA154: 0.3958 | AC154: 1.265 | AD154: 0.30105 | AE154: 1.02554 | AF154: 0.72449 | AG154: 0.72449 | AH154: 0.5249 | AJ154: 1.265 | AK154: 0.30105 | AL154: 1.45171 | AM154: 1.15065 | AN154: 1.15065 | AO154: 1.3240
A155: 1.28 | B155: 0.28672 | C155: 1.12800 | D155: 0.84128 | E155: 0.84128 | F155: 0.7078 | H155: 1.28 | I155: 0.28672 | J155: 0.39005 | K155: 0.10333 | L155: 0.10333 | M155: 0.0107 | O155: 1.28 | P155: 0.28672 | Q155: 0.05748 | R155: -0.22924 | S155: 0.22924 | T155: 0.0526 | V155: 1.28 | W155: 0.28672 | X155: -0.36158 | Y155: -0.64829 | Z155: 0.64829 | AA155: 0.4203 | AC155: 1.28 | AD155: 0.28672 | AE155: 1.02674 | AF155: 0.74002 | AG155: 0.74002 | AH155: 0.5476 | AJ155: 1.28 | AK155: 0.28672 | AL155: 1.48414 | AM155: 1.19742 | AN155: 1.19742 | AO155: 1.4338
A156: 1.295 | B156: 0.27231 | C156: 1.12950 | D156: 0.85719 | E156: 0.85719 | F156: 0.7348 | H156: 1.295 | I156: 0.27231 | J156: 0.37863 | K156: 0.10632 | L156: 0.10632 | M156: 0.0113 | O156: 1.295 | P156: 0.27231 | Q156: 0.04305 | R156: -0.22926 | S156: 0.22926 | T156: 0.0526 | V156: 1.295 | W156: 0.27231 | X156: -0.39555 | Y156: -0.66786 | Z156: 0.66786 | AA156: 0.4460 | AC156: 1.295 | AD156: 0.27231 | AE156: 1.02751 | AF156: 0.75520 | AG156: 0.75520 | AH156: 0.5703 | AJ156: 1.295 | AK156: 0.27231 | AL156: 1.51803 | AM156: 1.24572 | AN156: 1.24572 | AO156: 1.5518
A157: 1.31 | B157: 0.25785 | C157: 1.13100 | D157: 0.87315 | E157: 0.87315 | F157: 0.7624 | H157: 1.31 | I157: 0.25785 | J157: 0.36709 | K157: 0.10924 | L157: 0.10924 | M157: 0.0119 | O157: 1.31 | P157: 0.25785 | Q157: 0.02857 | R157: -0.22928 | S157: 0.22928 | T157: 0.0526 | V157: 1.31 | W157: 0.25785 | X157: -0.43003 | Y157: -0.68788 | Z157: 0.68788 | AA157: 0.4732 | AC157: 1.31 | AD157: 0.25785 | AE157: 1.02786 | AF157: 0.77001 | AG157: 0.77001 | AH157: 0.5929 | AJ157: 1.31 | AK157: 0.25785 | AL157: 1.55347 | AM157: 1.29562 | AN157: 1.29562 | AO157: 1.6786
A158: 1.325 | B158: 0.24333 | C158: 1.13250 | D158: 0.88917 | E158: 0.88917 | F158: 0.7906 | H158: 1.325 | I158: 0.24333 | J158: 0.35543 | K158: 0.11210 | L158: 0.11210 | M158: 0.0126 | O158: 1.325 | P158: 0.24333 | Q158: 0.01403 | R158: -0.22930 | S158: 0.22930 | T158: 0.0526 | V158: 1.325 | W158: 0.24333 | X158: -0.46503 | Y158: -0.70835 | Z158: 0.70835 | AA158: 0.5018 | AC158: 1.325 | AD158: 0.24333 | AE158: 1.02779 | AF158: 0.78446 | AG158: 0.78446 | AH158: 0.6154 | AJ158: 1.325 | AK158: 0.24333 | AL158: 1.59055 | AM158: 1.34722 | AN158: 1.34722 | AO158: 1.8150
A159: 1.34 | B159: 0.22875 | C159: 1.13400 | D159: 0.90525 | E159: 0.90525 | F159: 0.8195 | H159: 1.34 | I159: 0.22875 | J159: 0.34363 | K159: 0.11488 | L159: 0.11488 | M159: 0.0132 | O159: 1.34 | P159: 0.22875 | Q159: -0.00057 | R159: -0.22932 | S159: 0.22932 | T159: 0.0526 | V159: 1.34 | W159: 0.22875 | X159: -0.50054 | Y159: -0.72929 | Z159: 0.72929 | AA159: 0.5319 | AC159: 1.34 | AD159: 0.22875 | AE159: 1.02728 | AF159: 0.79852 | AG159: 0.79852 | AH159: 0.6376 | AJ159: 1.34 | AK159: 0.22875 | AL159: 1.62937 | AM159: 1.40061 | AN159: 1.40061 | AO159: 1.9617
A160: 1.355 | B160: 0.21413 | C160: 1.13550 | D160: 0.92137 | E160: 0.92137 | F160: 0.8489 | H160: 1.355 | I160: 0.21413 | J160: 0.33171 | K160: 0.11759 | L160: 0.11759 | M160: 0.0138 | O160: 1.355 | P160: 0.21413 | Q160: -0.01522 | R160: -0.22934 | S160: 0.22934 | T160: 0.0526 | V160: 1.355 | W160: 0.21413 | X160: -0.53658 | Y160: -0.75071 | Z160: 0.75071 | AA160: 0.5636 | AC160: 1.355 | AD160: 0.21413 | AE160: 1.02633 | AF160: 0.81221 | AG160: 0.81221 | AH160: 0.6597 | AJ160: 1.355 | AK160: 0.21413 | AL160: 1.67001 | AM160: 1.45589 | AN160: 1.45589 | AO160: 2.1196
A161: 1.37 | B161: 0.19945 | C161: 1.13700 | D161: 0.93755 | E161: 0.93755 | F161: 0.8790 | H161: 1.37 | I161: 0.19945 | J161: 0.31967 | K161: 0.12022 | L161: 0.12022 | M161: 0.0145 | O161: 1.37 | P161: 0.19945 | Q161: -0.02992 | R161: -0.22937 | S161: 0.22937 | T161: 0.0526 | V161: 1.37 | W161: 0.19945 | X161: -0.57316 | Y161: -0.77261 | Z161: 0.77261 | AA161: 0.5969 | AC161: 1.37 | AD161: 0.19945 | AE161: 1.02496 | AF161: 0.82551 | AG161: 0.82551 | AH161: 0.6815 | AJ161: 1.37 | AK161: 0.19945 | AL161: 1.71259 | AM161: 1.51314 | AN161: 1.51314 | AO161: 2.2896
A162: 1.385 | B162: 0.18473 | C162: 1.13850 | D162: 0.95377 | E162: 0.95377 | F162: 0.9097 | H162: 1.385 | I162: 0.18473 | J162: 0.30750 | K162: 0.12277 | L162: 0.12277 | M162: 0.0151 | O162: 1.385 | P162: 0.18473 | Q162: -0.04467 | R162: -0.22940 | S162: 0.22940 | T162: 0.0526 | V162: 1.385 | W162: 0.18473 | X162: -0.61027 | Y162: -0.79500 | Z162: 0.79500 | AA162: 0.6320 | AC162: 1.385 | AD162: 0.18473 | AE162: 1.02314 | AF162: 0.83841 | AG162: 0.83841 | AH162: 0.7029 | AJ162: 1.385 | AK162: 0.18473 | AL162: 1.75720 | AM162: 1.57247 | AN162: 1.57247 | AO162: 2.4727
A163: 1.4 | B163: 0.16997 | C163: 1.14000 | D163: 0.97003 | E163: 0.97003 | F163: 0.9410 | H163: 1.4 | I163: 0.16997 | J163: 0.29520 | K163: 0.12523 | L163: 0.12523 | M163: 0.0157 | O163: 1.4 | P163: 0.16997 | Q163: -0.05946 | R163: -0.22943 | S163: 0.22943 | T163: 0.0526 | V163: 1.4 | W163: 0.16997 | X163: -0.64792 | Y163: -0.81789 | Z163: 0.81789 | AA163: 0.6689 | AC163: 1.4 | AD163: 0.16997 | AE163: 1.02089 | AF163: 0.85092 | AG163: 0.85092 | AH163: 0.7241 | AJ163: 1.4 | AK163: 0.16997 | AL163: 1.80396 | AM163: 1.63399 | AN163: 1.63399 | AO163: 2.6699
A164: =A163+(b-a)/200 -> 1.415 | B164: 0.15517 | C164: 1.14150 | D164: 0.98633 | E164: 0.98633 | F164: 0.9729 | H164: 1.415 | I164: 0.15517 | J164: 0.28278 | K164: 0.12761 | L164: 0.12761 | M164: 0.0163 | O164: =O163+(bb-aa)/200 -> 1.415 | P164: 0.15517 | Q164: -0.07430 | R164: -0.22946 | S164: 0.22946 | T164: 0.0527 | V164: =V163+(bbb-aaa)/200 -> 1.415 | W164: 0.15517 | X164: -0.68612 | Y164: -0.84129 | Z164: 0.84129 | AA164: 0.7078 | AC164: =AC163+(bbbb-aaaa)/200 -> 1.415 | AD164: 0.15517 | AE164: 1.01820 | AF164: 0.86303 | AG164: 0.86303 | AH164: 0.7448 | AJ164: =AJ163+(bbbbb-aaaaa)/200 -> 1.415 | AK164: 0.15517 | AL164: 1.85298 | AM164: 1.69781 | AN164: 1.69781 | AO164: 2.8826
A165: 1.43 | B165: 0.14033 | C165: 1.14300 | D165: 1.00267 | E165: 1.00267 | F165: 1.0053 | H165: 1.43 | I165: 0.14033 | J165: 0.27023 | K165: 0.12990 | L165: 0.12990 | M165: 0.0169 | O165: 1.43 | P165: 0.14033 | Q165: -0.08917 | R165: -0.22951 | S165: 0.22951 | T165: 0.0527 | V165: 1.43 | W165: 0.14033 | X165: -0.72488 | Y165: -0.86521 | Z165: 0.86521 | AA165: 0.7486 | AC165: 1.43 | AD165: 0.14033 | AE165: 1.01506 | AF165: 0.87473 | AG165: 0.87473 | AH165: 0.7652 | AJ165: 1.43 | AK165: 0.14033 | AL165: 1.90437 | AM165: 1.76403 | AN165: 1.76403 | AO165: 3.1118
A166: 1.445 | B166: 0.12546 | C166: 1.14450 | D166: 1.01904 | E166: 1.01904 | F166: 1.0384 | H166: 1.445 | I166: 0.12546 | J166: 0.25755 | K166: 0.13209 | L166: 0.13209 | M166: 0.0174 | O166: 1.445 | P166: 0.12546 | Q166: -0.10409 | R166: -0.22955 | S166: 0.22955 | T166: 0.0527 | V166: 1.445 | W166: 0.12546 | X166: -0.76420 | Y166: -0.88967 | Z166: 0.88967 | AA166: 0.7915 | AC166: 1.445 | AD166: 0.12546 | AE166: 1.01149 | AF166: 0.88602 | AG166: 0.88602 | AH166: 0.7850 | AJ166: 1.445 | AK166: 0.12546 | AL166: 1.95825 | AM166: 1.83278 | AN166: 1.83278 | AO166: 3.3591
A167: 1.46 | B167: 0.11057 | C167: 1.14600 | D167: 1.03543 | E167: 1.03543 | F167: 1.0721 | H167: 1.46 | I167: 0.11057 | J167: 0.24475 | K167: 0.13418 | L167: 0.13418 | M167: 0.0180 | O167: 1.46 | P167: 0.11057 | Q167: -0.11904 | R167: -0.22961 | S167: 0.22961 | T167: 0.0527 | V167: 1.46 | W167: 0.11057 | X167: -0.80409 | Y167: -0.91466 | Z167: 0.91466 | AA167: 0.8366 | AC167: 1.46 | AD167: 0.11057 | AE167: 1.00747 | AF167: 0.89690 | AG167: 0.89690 | AH167: 0.8044 | AJ167: 1.46 | AK167: 0.11057 | AL167: 2.01475 | AM167: 1.90418 | AN167: 1.90418 | AO167: 3.6259
A168: 1.475 | B168: 0.09565 | C168: 1.14750 | D168: 1.05185 | E168: 1.05185 | F168: 1.1064 | H168: 1.475 | I168: 0.09565 | J168: 0.23183 | K168: 0.13618 | L168: 0.13618 | M168: 0.0185 | O168: 1.475 | P168: 0.09565 | Q168: -0.13402 | R168: -0.22967 | S168: 0.22967 | T168: 0.0527 | V168: 1.475 | W168: 0.09565 | X168: -0.84455 | Y168: -0.94020 | Z168: 0.94020 | AA168: 0.8840 | AC168: 1.475 | AD168: 0.09565 | AE168: 1.00301 | AF168: 0.90736 | AG168: 0.90736 | AH168: 0.8233 | AJ168: 1.475 | AK168: 0.09565 | AL168: 2.07400 | AM168: 1.97835 | AN168: 1.97835 | AO168: 3.9139
A169: 1.49 | B169: 0.08071 | C169: 1.14900 | D169: 1.06829 | E169: 1.06829 | F169: 1.1412 | H169: 1.49 | I169: 0.08071 | J169: 0.21877 | K169: 0.13806 | L169: 0.13806 | M169: 0.0191 | O169: 1.49 | P169: 0.08071 | Q169: -0.14904 | R169: -0.22975 | S169: 0.22975 | T169: 0.0528 | V169: 1.49 | W169: 0.08071 | X169: -0.88559 | Y169: -0.96630 | Z169: 0.96630 | AA169: 0.9337 | AC169: 1.49 | AD169: 0.08071 | AE169: 0.99811 | AF169: 0.91740 | AG169: 0.91740 | AH169: 0.8416 | AJ169: 1.49 | AK169: 0.08071 | AL169: 2.13613 | AM169: 2.05542 | AN169: 2.05542 | AO169: 4.2248
A170: 1.505 | B170: 0.06575 | C170: 1.15050 | D170: 1.08475 | E170: 1.08475 | F170: 1.1767 | H170: 1.505 | I170: 0.06575 | J170: 0.20559 | K170: 0.13984 | L170: 0.13984 | M170: 0.0196 | O170: 1.505 | P170: 0.06575 | Q170: -0.16408 | R170: -0.22983 | S170: 0.22983 | T170: 0.0528 | V170: 1.505 | W170: 0.06575 | X170: -0.92722 | Y170: -0.99297 | Z170: 0.99297 | AA170: 0.9860 | AC170: 1.505 | AD170: 0.06575 | AE170: 0.99276 | AF170: 0.92701 | AG170: 0.92701 | AH170: 0.8594 | AJ170: 1.505 | AK170: 0.06575 | AL170: 2.20128 | AM170: 2.13553 | AN170: 2.13553 | AO170: 4.5605
A171: 1.52 | B171: 0.05077 | C171: 1.15200 | D171: 1.10123 | E171: 1.10123 | F171: 1.2127 | H171: 1.52 | I171: 0.05077 | J171: 0.19229 | K171: 0.14151 | L171: 0.14151 | M171: 0.0200 | O171: 1.52 | P171: 0.05077 | Q171: -0.17915 | R171: -0.22992 | S171: 0.22992 | T171: 0.0529 | V171: 1.52 | W171: 0.05077 | X171: -0.96945 | Y171: -1.02022 | Z171: 1.02022 | AA171: 1.0409 | AC171: 1.52 | AD171: 0.05077 | AE171: 0.98698 | AF171: 0.93620 | AG171: 0.93620 | AH171: 0.8765 | AJ171: 1.52 | AK171: 0.05077 | AL171: 2.26959 | AM171: 2.21881 | AN171: 2.21881 | AO171: 4.9231
A172: 1.535 | B172: 0.03579 | C172: 1.15350 | D172: 1.11771 | E172: 1.11771 | F172: 1.2493 | H172: 1.535 | I172: 0.03579 | J172: 0.17886 | K172: 0.14307 | L172: 0.14307 | M172: 0.0205 | O172: 1.535 | P172: 0.03579 | Q172: -0.19424 | R172: -0.23003 | S172: 0.23003 | T172: 0.0529 | V172: 1.535 | W172: 0.03579 | X172: -1.01227 | Y172: -1.04806 | Z172: 1.04806 | AA172: 1.0984 | AC172: 1.535 | AD172: 0.03579 | AE172: 0.98075 | AF172: 0.94496 | AG172: 0.94496 | AH172: 0.8929 | AJ172: 1.535 | AK172: 0.03579 | AL172: 2.34120 | AM172: 2.30541 | AN172: 2.30541 | AO172: 5.3149
A173: 1.55 | B173: 0.02079 | C173: 1.15500 | D173: 1.13421 | E173: 1.13421 | F173: 1.2864 | H173: 1.55 | I173: 0.02079 | J173: 0.16530 | K173: 0.14451 | L173: 0.14451 | M173: 0.0209 | O173: 1.55 | P173: 0.02079 | Q173: -0.20935 | R173: -0.23015 | S173: 0.23015 | T173: 0.0530 | V173: 1.55 | W173: 0.02079 | X173: -1.05570 | Y173: -1.07650 | Z173: 1.07650 | AA173: 1.1589 | AC173: 1.55 | AD173: 0.02079 | AE173: 0.97408 | AF173: 0.95329 | AG173: 0.95329 | AH173: 0.9088 | AJ173: 1.55 | AK173: 0.02079 | AL173: 2.41627 | AM173: 2.39548 | AN173: 2.39548 | AO173: 5.7383
A174: 1.565 | B174: 0.00580 | C174: 1.15650 | D174: 1.15070 | E174: 1.15070 | F174: 1.3241 | H174: 1.565 | I174: 0.00580 | J174: 0.15162 | K174: 0.14582 | L174: 0.14582 | M174: 0.0213 | O174: 1.565 | P174: 0.00580 | Q174: -0.22448 | R174: -0.23028 | S174: 0.23028 | T174: 0.0530 | V174: 1.565 | W174: 0.00580 | X174: -1.09975 | Y174: -1.10555 | Z174: 1.10555 | AA174: 1.2222 | AC174: 1.565 | AD174: 0.00580 | AE174: 0.96697 | AF174: 0.96118 | AG174: 0.96118 | AH174: 0.9239 | AJ174: 1.565 | AK174: 0.00580 | AL174: 2.49496 | AM174: 2.48916 | AN174: 2.48916 | AO174: 6.1959
A175: 1.58 | B175: -0.00920 | C175: 1.15800 | D175: 1.16720 | E175: 1.16720 | F175: 1.3624 | H175: 1.58 | I175: -0.00920 | J175: 0.13781 | K175: 0.14701 | L175: 0.14701 | M175: 0.0216 | O175: 1.58 | P175: -0.00920 | Q175: -0.23963 | R175: -0.23042 | S175: 0.23042 | T175: 0.0531 | V175: 1.58 | W175: -0.00920 | X175: -1.14442 | Y175: -1.13522 | Z175: 1.13522 | AA175: 1.2887 | AC175: 1.58 | AD175: -0.00920 | AE175: 0.95943 | AF175: 0.96863 | AG175: 0.96863 | AH175: 0.9383 | AJ175: 1.58 | AK175: -0.00920 | AL175: 2.57742 | AM175: 2.58662 | AN175: 2.58662 | AO175: 6.6906
A176: 1.595 | B176: -0.02420 | C176: 1.15950 | D176: 1.18370 | E176: 1.18370 | F176: 1.4011 | H176: 1.595 | I176: -0.02420 | J176: 0.12387 | K176: 0.14807 | L176: 0.14807 | M176: 0.0219 | O176: 1.595 | P176: -0.02420 | Q176: -0.25478 | R176: -0.23058 | S176: 0.23058 | T176: 0.0532 | V176: 1.595 | W176: -0.02420 | X176: -1.18972 | Y176: -1.16552 | Z176: 1.16552 | AA176: 1.3584 | AC176: 1.595 | AD176: -0.02420 | AE176: 0.95145 | AF176: 0.97565 | AG176: 0.97565 | AH176: 0.9519 | AJ176: 1.595 | AK176: -0.02420 | AL176: 2.66382 | AM176: 2.68802 | AN176: 2.68802 | AO176: 7.2255
A177: 1.61 | B177: -0.03919 | C177: 1.16100 | D177: 1.20019 | E177: 1.20019 | F177: 1.4405 | H177: 1.61 | I177: -0.03919 | J177: 0.10981 | K177: 0.14901 | L177: 0.14901 | M177: 0.0222 | O177: 1.61 | P177: -0.03919 | Q177: -0.26995 | R177: -0.23076 | S177: 0.23076 | T177: 0.0533 | V177: 1.61 | W177: -0.03919 | X177: -1.23565 | Y177: -1.19646 | Z177: 1.19646 | AA177: 1.4315 | AC177: 1.61 | AD177: -0.03919 | AE177: 0.94304 | AF177: 0.98223 | AG177: 0.98223 | AH177: 0.9648 | AJ177: 1.61 | AK177: -0.03919 | AL177: 2.75433 | AM177: 2.79353 | AN177: 2.79353 | AO177: 7.8038
A178: 1.625 | B178: -0.05418 | C178: 1.16250 | D178: 1.21668 | E178: 1.21668 | F178: 1.4803 | H178: 1.625 | I178: -0.05418 | J178: 0.09563 | K178: 0.14980 | L178: 0.14980 | M178: 0.0224 | O178: 1.625 | P178: -0.05418 | Q178: -0.28513 | R178: -0.23095 | S178: 0.23095 | T178: 0.0533 | V178: 1.625 | W178: -0.05418 | X178: -1.28223 | Y178: -1.22806 | Z178: 1.22806 | AA178: 1.5081 | AC178: 1.625 | AD178: -0.05418 | AE178: 0.93420 | AF178: 0.98838 | AG178: 0.98838 | AH178: 0.9769 | AJ178: 1.625 | AK178: -0.05418 | AL178: 2.84913 | AM178: 2.90331 | AN178: 2.90331 | AO178: 8.4292
A179: 1.64 | B179: -0.06915 | C179: 1.16400 | D179: 1.23315 | E179: 1.23315 | F179: 1.5207 | H179: 1.64 | I179: -0.06915 | J179: 0.08131 | K179: 0.15046 | L179: 0.15046 | M179: 0.0226 | O179: 1.64 | P179: -0.06915 | Q179: -0.30032 | R179: -0.23117 | S179: 0.23117 | T179: 0.0534 | V179: 1.64 | W179: -0.06915 | X179: -1.32946 | Y179: -1.26032 | Z179: 1.26032 | AA179: 1.5884 | AC179: 1.64 | AD179: -0.06915 | AE179: 0.92493 | AF179: 0.99408 | AG179: 0.99408 | AH179: 0.9882 | AJ179: 1.64 | AK179: -0.06915 | AL179: 2.94840 | AM179: 3.01755 | AN179: 3.01755 | AO179: 9.1056
A180: 1.655 | B180: -0.08410 | C180: 1.16550 | D180: 1.24960 | E180: 1.24960 | F180: 1.5615 | H180: 1.655 | I180: -0.08410 | J180: 0.06687 | K180: 0.15098 | L180: 0.15098 | M180: 0.0228 | O180: 1.655 | P180: -0.08410 | Q180: -0.31550 | R180: -0.23140 | S180: 0.23140 | T180: 0.0535 | V180: 1.655 | W180: -0.08410 | X180: -1.37735 | Y180: -1.29325 | Z180: 1.29325 | AA180: 1.6725 | AC180: 1.655 | AD180: -0.08410 | AE180: 0.91524 | AF180: 0.99934 | AG180: 0.99934 | AH180: 0.9987 | AJ180: 1.655 | AK180: -0.08410 | AL180: 3.05232 | AM180: 3.13642 | AN180: 3.13642 | AO180: 9.8372
A181: 1.67 | B181: -0.09904 | C181: 1.16700 | D181: 1.26604 | E181: 1.26604 | F181: 1.6029 | H181: 1.67 | I181: -0.09904 | J181: 0.05231 | K181: 0.15135 | L181: 0.15135 | M181: 0.0229 | O181: 1.67 | P181: -0.09904 | Q181: -0.33069 | R181: -0.23165 | S181: 0.23165 | T181: 0.0537 | V181: 1.67 | W181: -0.09904 | X181: -1.42591 | Y181: -1.32687 | Z181: 1.32687 | AA181: 1.7606 | AC181: 1.67 | AD181: -0.09904 | AE181: 0.90512 | AF181: 1.00416 | AG181: 1.00416 | AH181: 1.0083 | AJ181: 1.67 | AK181: -0.09904 | AL181: 3.16109 | AM181: 3.26013 | AN181: 3.26013 | AO181: 10.6284
A182: 1.685 | B182: -0.11396 | C182: 1.16850 | D182: 1.28246 | E182: 1.28246 | F182: 1.6447 | H182: 1.685 | I182: -0.11396 | J182: 0.03762 | K182: 0.15157 | L182: 0.15157 | M182: 0.0230 | O182: 1.685 | P182: -0.11396 | Q182: -0.34588 | R182: -0.23192 | S182: 0.23192 | T182: 0.0538 | V182: 1.685 | W182: -0.11396 | X182: -1.47514 | Y182: -1.36119 | Z182: 1.36119 | AA182: 1.8528 | AC182: 1.685 | AD182: -0.11396 | AE182: 0.89459 | AF182: 1.00855 | AG182: 1.00855 | AH182: 1.0172 | AJ182: 1.685 | AK182: -0.11396 | AL182: 3.27490 | AM182: 3.38886 | AN182: 3.38886 | AO182: 11.4843
A183: 1.7 | B183: -0.12884 | C183: 1.17000 | D183: 1.29884 | E183: 1.29884 | F183: 1.6870 | H183: 1.7 | I183: -0.12884 | J183: 0.02280 | K183: 0.15164 | L183: 0.15164 | M183: 0.0230 | O183: 1.7 | P183: -0.12884 | Q183: -0.36106 | R183: -0.23221 | S183: 0.23221 | T183: 0.0539 | V183: 1.7 | W183: -0.12884 | X183: -1.52506 | Y183: -1.39621 | Z183: 1.39621 | AA183: 1.9494 | AC183: 1.7 | AD183: -0.12884 | AE183: 0.88365 | AF183: 1.01250 | AG183: 1.01250 | AH183: 1.0252 | AJ183: 1.7 | AK183: -0.12884 | AL183: 3.39396 | AM183: 3.52280 | AN183: 3.52280 | AO183: 12.4102
A184: 1.715 | B184: -0.14370 | C184: 1.17150 | D184: 1.31520 | E184: 1.31520 | F184: 1.7298 | H184: 1.715 | I184: -0.14370 | J184: 0.00786 | K184: 0.15156 | L184: 0.15156 | M184: 0.0230 | O184: 1.715 | P184: -0.14370 | Q184: -0.37623 | R184: -0.23253 | S184: 0.23253 | T184: 0.0541 | V184: 1.715 | W184: -0.14370 | X184: -1.57566 | Y184: -1.43196 | Z184: 1.43196 | AA184: 2.0505 | AC184: 1.715 | AD184: -0.14370 | AE184: 0.87230 | AF184: 1.01601 | AG184: 1.01601 | AH184: 1.0323 | AJ184: 1.715 | AK184: -0.14370 | AL184: 3.51848 | AM184: 3.66218 | AN184: 3.66218 | AO184: 13.4116
A185: 1.73 | B185: -0.15853 | C185: 1.17300 | D185: 1.33153 | E185: 1.33153 | F185: 1.7730 | H185: 1.73 | I185: -0.15853 | J185: -0.00721 | K185: 0.15132 | L185: 0.15132 | M185: 0.0229 | O185: 1.73 | P185: -0.15853 | Q185: -0.39140 | R185: -0.23287 | S185: 0.23287 | T185: 0.0542 | V185: 1.73 | W185: -0.15853 | X185: -1.62697 | Y185: -1.46843 | Z185: 1.46843 | AA185: 2.1563 | AC185: 1.73 | AD185: -0.15853 | AE185: 0.86055 | AF185: 1.01908 | AG185: 1.01908 | AH185: 1.0385 | AJ185: 1.73 | AK185: -0.15853 | AL185: 3.64866 | AM185: 3.80719 | AN185: 3.80719 | AO185: 14.4947
A186: 1.745 | B186: -0.17332 | C186: 1.17450 | D186: 1.34782 | E186: 1.34782 | F186: 1.8166 | H186: 1.745 | I186: -0.17332 | J186: -0.02241 | K186: 0.15092 | L186: 0.15092 | M186: 0.0228 | O186: 1.745 | P186: -0.17332 | Q186: -0.40655 | R186: -0.23323 | S186: 0.23323 | T186: 0.0544 | V186: 1.745 | W186: -0.17332 | X186: -1.67898 | Y186: -1.50565 | Z186: 1.50565 | AA186: 2.2670 | AC186: 1.745 | AD186: -0.17332 | AE186: 0.84840 | AF186: 1.02173 | AG186: 1.02173 | AH186: 1.0439 | AJ186: 1.745 | AK186: -0.17332 | AL186: 3.78474 | AM186: 3.95806 | AN186: 3.95806 | AO186: 15.6663
A187: 1.76 | B187: -0.18808 | C187: 1.17600 | D187: 1.36408 | E187: 1.36408 | F187: 1.8607 | H187: 1.76 | I187: -0.18808 | J187: -0.03773 | K187: 0.15035 | L187: 0.15035 | M187: 0.0226 | O187: 1.76 | P187: -0.18808 | Q187: -0.42169 | R187: -0.23362 | S187: 0.23362 | T187: 0.0546 | V187: 1.76 | W187: -0.18808 | X187: -1.73171 | Y187: -1.54363 | Z187: 1.54363 | AA187: 2.3828 | AC187: 1.76 | AD187: -0.18808 | AE187: 0.83586 | AF187: 1.02394 | AG187: 1.02394 | AH187: 1.0485 | AJ187: 1.76 | AK187: -0.18808 | AL187: 3.92694 | AM187: 4.11501 | AN187: 4.11501 | AO187: 16.9333
A188: 1.775 | B188: -0.20279 | C188: 1.17750 | D188: 1.38029 | E188: 1.38029 | F188: 1.9052 | H188: 1.775 | I188: -0.20279 | J188: -0.05317 | K188: 0.14961 | L188: 0.14961 | M188: 0.0224 | O188: 1.775 | P188: -0.20279 | Q188: -0.43682 | R188: -0.23403 | S188: 0.23403 | T188: 0.0548 | V188: 1.775 | W188: -0.20279 | X188: -1.78516 | Y188: -1.58237 | Z188: 1.58237 | AA188: 2.5039 | AC188: 1.775 | AD188: -0.20279 | AE188: 0.82293 | AF188: 1.02572 | AG188: 1.02572 | AH188: 1.0521 | AJ188: 1.775 | AK188: -0.20279 | AL188: 4.07548 | AM188: 4.27827 | AN188: 4.27827 | AO188: 18.3036
A189: 1.79 | B189: -0.21745 | C189: 1.17900 | D189: 1.39645 | E189: 1.39645 | F189: 1.9501 | H189: 1.79 | I189: -0.21745 | J189: -0.06875 | K189: 0.14870 | L189: 0.14870 | M189: 0.0221 | O189: 1.79 | P189: -0.21745 | Q189: -0.45192 | R189: -0.23447 | S189: 0.23447 | T189: 0.0550 | V189: 1.79 | W189: -0.21745 | X189: -1.83934 | Y189: -1.62189 | Z189: 1.62189 | AA189: 2.6305 | AC189: 1.79 | AD189: -0.21745 | AE189: 0.80963 | AF189: 1.02708 | AG189: 1.02708 | AH189: 1.0549 | AJ189: 1.79 | AK189: -0.21745 | AL189: 4.23062 | AM189: 4.44807 | AN189: 4.44807 | AO189: 19.7853
A190: 1.805 | B190: -0.23207 | C190: 1.18050 | D190: 1.41257 | E190: 1.41257 | F190: 1.9953 | H190: 1.805 | I190: -0.23207 | J190: -0.08445 | K190: 0.14762 | L190: 0.14762 | M190: 0.0218 | O190: 1.805 | P190: -0.23207 | Q190: -0.46701 | R190: -0.23494 | S190: 0.23494 | T190: 0.0552 | V190: 1.805 | W190: -0.23207 | X190: -1.89427 | Y190: -1.66220 | Z190: 1.66220 | AA190: 2.7629 | AC190: 1.805 | AD190: -0.23207 | AE190: 0.79595 | AF190: 1.02802 | AG190: 1.02802 | AH190: 1.0568 | AJ190: 1.805 | AK190: -0.23207 | AL190: 4.39259 | AM190: 4.62466 | AN190: 4.62466 | AO190: 21.3874
A191: 1.82 | B191: -0.24663 | C191: 1.18200 | D191: 1.42863 | E191: 1.42863 | F191: 2.0410 | H191: 1.82 | I191: -0.24663 | J191: -0.10027 | K191: 0.14636 | L191: 0.14636 | M191: 0.0214 | O191: 1.82 | P191: -0.24663 | Q191: -0.48206 | R191: -0.23543 | S191: 0.23543 | T191: 0.0554 | V191: 1.82 | W191: -0.24663 | X191: -1.94995 | Y191: -1.70332 | Z191: 1.70332 | AA191: 2.9013 | AC191: 1.82 | AD191: -0.24663 | AE191: 0.78191 | AF191: 1.02854 | AG191: 1.02854 | AH191: 1.0579 | AJ191: 1.82 | AK191: -0.24663 | AL191: 4.56164 | AM191: 4.80828 | AN191: 4.80828 | AO191: 23.1195
A192: 1.835 | B192: -0.26114 | C192: 1.18350 | D192: 1.44464 | E192: 1.44464 | F192: 2.0870 | H192: 1.835 | I192: -0.26114 | J192: -0.11622 | K192: 0.14492 | L192: 0.14492 | M192: 0.0210 | O192: 1.835 | P192: -0.26114 | Q192: -0.49710 | R192: -0.23596 | S192: 0.23596 | T192: 0.0557 | V192: 1.835 | W192: -0.26114 | X192: -2.00639 | Y192: -1.74525 | Z192: 1.74525 | AA192: 3.0459 | AC192: 1.835 | AD192: -0.26114 | AE192: 0.76750 | AF192: 1.02864 | AG192: 1.02864 | AH192: 1.0581 | AJ192: 1.835 | AK192: -0.26114 | AL192: 4.73805 | AM192: 4.99919 | AN192: 4.99919 | AO192: 24.9919
A193: 1.85 | B193: -0.27559 | C193: 1.18500 | D193: 1.46059 | E193: 1.46059 | F193: 2.1333 | H193: 1.85 | I193: -0.27559 | J193: -0.13230 | K193: 0.14329 | L193: 0.14329 | M193: 0.0205 | O193: 1.85 | P193: -0.27559 | Q193: -0.51210 | R193: -0.23651 | S193: 0.23651 | T193: 0.0559 | V193: 1.85 | W193: -0.27559 | X193: -2.06359 | Y193: -1.78800 | Z193: 1.78800 | AA193: 3.1970 | AC193: 1.85 | AD193: -0.27559 | AE193: 0.75275 | AF193: 1.02834 | AG193: 1.02834 | AH193: 1.0575 | AJ193: 1.85 | AK193: -0.27559 | AL193: 4.92206 | AM193: 5.19765 | AN193: 5.19765 | AO193: 27.0155
A194: 1.865 | B194: -0.28998 | C194: 1.18650 | D194: 1.47648 | E194: 1.47648 | F194: 2.1800 | H194: 1.865 | I194: -0.28998 | J194: -0.14850 | K194: 0.14147 | L194: 0.14147 | M194: 0.0200 | O194: 1.865 | P194: -0.28998 | Q194: -0.52707 | R194: -0.23710 | S194: 0.23710 | T194: 0.0562 | V194: 1.865 | W194: -0.28998 | X194: -2.12158 | Y194: -1.83160 | Z194: 1.83160 | AA194: 3.3548 | AC194: 1.865 | AD194: -0.28998 | AE194: 0.73766 | AF194: 1.02764 | AG194: 1.02764 | AH194: 1.0560 | AJ194: 1.865 | AK194: -0.28998 | AL194: 5.11395 | AM194: 5.40393 | AN194: 5.40393 | AO194: 29.2024
A195: 1.88 | B195: -0.30430 | C195: =aa00+bb00*A195 -> 1.18800 | D195: 1.49230 | E195: 1.49230 | F195: 2.2270 | H195: 1.88 | I195: -0.30430 | J195: =a0+b0*A195+c0*A195^2 -> -0.16483 | K195: 0.13947 | L195: 0.13947 | M195: 0.0195 | O195: 1.88 | P195: -0.30430 | Q195: =a00+b00*O195+c00*O195^2+d00*A195^3 -> -0.54201 | R195: -0.23771 | S195: 0.23771 | T195: 0.0565 | V195: 1.88 | W195: -0.30430 | X195: =a000+b000*V195+c000*V195^2+d000*O195^3+e000*O195^4 -> -2.18035 | Y195: -1.87605 | Z195: 1.87605 | AA195: 3.5196 | AC195: 1.88 | AD195: -0.30430 | AE195: =a0000+b0000*AC195+c0000*AC195^2+d0000*AC195^3+e0000*AC195^4+f0000*AC195^5 -> 0.72223 | AF195: 1.02653 | AG195: 1.02653 | AH195: 1.0538 | AJ195: 1.88 | AK195: -0.30430 | AL195: =a0000+b0000*AJ195+c0000*AJ195^2+d0000*AJ195^3+e0000*AJ195^4+f0000*AJ195^5+g00000*AJ195^6 -> 5.31400 | AM195: 5.61830 | AN195: 5.61830 | AO195: 31.5653
A196: =A195+(b-a)/200 -> 1.895 | B196: =COS(A196) -> -0.31855 | C196: 1.18950 | D196: =C196-B196 -> 1.50805 | E196: =ABS(D196) -> 1.50805 | F196: =D196^2 -> 2.2742 | H196: =H195+(b-a)/200 -> 1.895 | I196: =COS(H196) -> -0.31855 | J196: -0.18129 | K196: =J196-I196 -> 0.13727 | L196: =ABS(K196) -> 0.13727 | M196: =K196^2 -> 0.0188 | O196: =O195+(bb-aa)/200 -> 1.895 | P196: =COS(O196) -> -0.31855 | Q196: -0.55691 | R196: =Q196-P196 -> -0.23836 | S196: =ABS(R196) -> 0.23836 | T196: =R196^2 -> 0.0568 | V196: =V195+(bbb-aaa)/200 -> 1.895 | W196: =COS(V196) -> -0.31855 | X196: -2.23992 | Y196: =X196-W196 -> -1.92136 | Z196: =ABS(Y196) -> 1.92136 | AA196: =Y196^2 -> 3.6916 | AC196: =AC195+(bbbb-aaaa)/200 -> 1.895 | AD196: =COS(AC196) -> -0.31855 | AE196: 0.70648 | AF196: =AE196-AD196 -> 1.02503 | AG196: =ABS(AF196) -> 1.02503 | AH196: =AF196^2 -> 1.0507 | AJ196: =AJ195+(bbbbb-aaaaa)/200 -> 1.895 | AK196: =COS(AJ196) -> -0.31855 | AL196: 5.52250 | AM196: =AL196-AK196 -> 5.84106 | AN196: =ABS(AM196) -> 5.84106 | AO196: =AM196^2 -> 34.1180
A197: 1.91 | B197: -0.33274 | C197: 1.19100 | D197: 1.52374 | E197: 1.52374 | F197: 2.3218 | H197: 1.91 | I197: -0.33274 | J197: -0.19787 | K197: 0.13487 | L197: 0.13487 | M197: 0.0182 | O197: 1.91 | P197: -0.33274 | Q197: -0.57178 | R197: -0.23904 | S197: 0.23904 | T197: 0.0571 | V197: 1.91 | W197: -0.33274 | X197: -2.30029 | Y197: -1.96755 | Z197: 1.96755 | AA197: 3.8713 | AC197: 1.91 | AD197: -0.33274 | AE197: 0.69041 | AF197: 1.02315 | AG197: 1.02315 | AH197: 1.0468 | AJ197: 1.91 | AK197: -0.33274 | AL197: 5.73974 | AM197: 6.07248 | AN197: 6.07248 | AO197: 36.8750
A198: 1.925 | B198: -0.34684 | C198: 1.19250 | D198: 1.53934 | E198: 1.53934 | F198: 2.3696 | H198: 1.925 | I198: -0.34684 | J198: -0.21457 | K198: 0.13227 | L198: 0.13227 | M198: 0.0175 | O198: 1.925 | P198: -0.34684 | Q198: -0.58660 | R198: -0.23975 | S198: 0.23975 | T198: 0.0575 | V198: 1.925 | W198: -0.34684 | X198: -2.36148 | Y198: -2.01464 | Z198: 2.01464 | AA198: 4.0588 | AC198: 1.925 | AD198: -0.34684 | AE198: 0.67404 | AF198: 1.02089 | AG198: 1.02089 | AH198: 1.0422 | AJ198: 1.925 | AK198: -0.34684 | AL198: 5.96602 | AM198: 6.31286 | AN198: 6.31286 | AO198: 39.8522
A199: 1.94 | B199: -0.36087 | C199: 1.19400 | D199: 1.55487 | E199: 1.55487 | F199: 2.4176 | H199: 1.94 | I199: -0.36087 | J199: -0.23141 | K199: 0.12946 | L199: 0.12946 | M199: 0.0168 | O199: 1.94 | P199: -0.36087 | Q199: -0.60138 | R199: -0.24050 | S199: 0.24050 | T199: 0.0578 | V199: 1.94 | W199: -0.36087 | X199: -2.42349 | Y199: -2.06262 | Z199: 2.06262 | AA199: 4.2544 | AC199: 1.94 | AD199: -0.36087 | AE199: 0.65738 | AF199: 1.01825 | AG199: 1.01825 | AH199: 1.0368 | AJ199: 1.94 | AK199: -0.36087 | AL199: 6.20164 | AM199: 6.56251 | AN199: 6.56251 | AO199: 43.0666
A200: 1.955 | B200: -0.37482 | C200: 1.19550 | D200: 1.57032 | E200: 1.57032 | F200: 2.4659 | H200: 1.955 | I200: -0.37482 | J200: -0.24837 | K200: 0.12645 | L200: 0.12645 | M200: 0.0160 | O200: 1.955 | P200: -0.37482 | Q200: -0.61611 | R200: -0.24129 | S200: 0.24129 | T200: 0.0582 | V200: 1.955 | W200: -0.37482 | X200: -2.48634 | Y200: -2.11152 | Z200: 2.11152 | AA200: 4.4585 | AC200: 1.955 | AD200: -0.37482 | AE200: 0.64043 | AF200: 1.01525 | AG200: 1.01525 | AH200: 1.0307 | AJ200: 1.955 | AK200: -0.37482 | AL200: 6.44692 | AM200: 6.82175 | AN200: 6.82175 | AO200: 46.5362
... 4 more rows
